{"text_format":"1","workbook":"xlsx","n_sheets":7,"sheets":["Einleitung","Auswahl","Kennzahlen","VBA","BwKz_Daten1","Diagramme1","Diagramme2"],"not_rendered":{"charts":8,"images":4,"macros":1,"external_links":0,"defined_names":221,"comments":0,"pivot_tables":0},"unopened":[],"bounds":{"document_bytes":16777216,"sheet_cells":100000,"rows_first":2000,"rows_last":500,"rows_between":2000,"halvings":0,"cell_chars":16384,"cell_head_chars":4096},"cells_cut":0,"cells_raw":0,"read":"whole","date_system":"1900"}

{"sheet":"Einleitung","index":0,"n_rows":36,"n_cols":13,"rows_kept":36,"cut":false,"hidden":false,"merged":[[5,11,5,17],[19,15,19,18]]}
[]
[null,"SCHLAG-NACH \"Betriebswirtschaftliche Kennzahlen\""]
[null,"Visualisiert, interaktiv, kommentiert, beispieluntersetzt"]
[]
[]
[null,null,"Planung und Steuerung des Geschäftsbetriebs von Unternehmen heißt u. a., über die Bildung und Auswertung"]
[null,null," betriebswirtschaftlicher Kennzahlen",null,null,null,null,null,null,null,null,null,"Genutzte Literaturquellen:"]
[]
[null,null,null," - Ziele vorzugeben,",null,null,null,null,null,null,null,null,"ERLEN, B./ISAAK, A. J.: BWL-Kennzahlen. WILEY, Weinheim 2015."]
[]
[null,null,null," - die Erfüllung der Vorgaben zu kontrollieren und ",null,null,null,null,null,null,null,null,"WEBER, M.: Schnelleinstieg Kennzahlen. HAUFE, Freiburg 2006."]
[]
[null,null,null," - Ursache-Wirkung-Zusammenhänge aufzudecken und zu analysieren!",null,null,null,null,null,null,null,null,"WÖLTJE, J.: Betriebswirtschaftliche Formelsammlung, HAUFE, Freiburg 2005."]
[]
[null,null,"Wie aber soll man sich die Definition und die Berechnung betriebswirtschaftlicher Kennzahlen in ihrer großen ",null,null,null,null,null,null,null,null,null,"WULF, I./WIELAND, J.: Kennzahlen IFRS-Abschluss. WILEY, Weinheim 2013."]
[null,null,"Vielfalt merken?  Antwort: Ganz einfach, nutzen Sie diesen \"SCHLAG-NACH\"!"]
[null,null,"Was sind die besondere Merkmale dieses excelbasierten Tools?"]
[null,null,"  (1) Die über 100 Kennzahlen wurden nach inhaltlichen Kriterien sowie nach Daten-Bezügen in 5 Gruppen eingeteilt."]
[null,null,"        Dies soll die Auswahl der Kennzahlen zu Analysezwecken (z. B. für eine Bilanzanalyse) erleichtern."]
[null,null,"  (2) Zu jeder Kennzahl gibt es eine kurz gefasste Definition mit Anmerkungen zum jeweiligen betriebswirtschaftlichen"]
[null,null,"       \"Background\". Des Weiteren kann ein \"Kommentar\" zur gewählten Kennzahl eingeblendet werden."]
[null,null,"  (3) Für das Veranschaulichen der formelseitigen Ermittlung und Berechnung der ausgewählten Kennzahl werden die"]
[null,null,"        Möglichkeiten von MS Excel hinsichtlich der grafischen Gestaltung von Userformen und der Erstellung von Makros"]
[null,null,"        mit der Programmiersprache \"Visual Basic for Applications\" (VBA) genutzt."]
[null,null,"       Auf diese Weise kann die inhaltliche Struktur der jeweiligen Kennzahl und die Einordnung des mit der Kennzahl"]
[null,null,"       erfassten betriebswirtschaftlichen Sachverhalts in Unternehmensprozesse visualisiert verdeutlicht werden."]
[null,null,"      Dabei wird zugleich gezeigt, von welchen Steuergrößen der Wert der jeweiligen Kennzahlen-Zielgröße abhängt."]
[null,null,"  (4) Die programmtechnischen Möglichkeiten zum Erstellen von Makros erlauben es,  zu zeigen,  wie \"empfindlich\" "]
[null,null,"       wie Kennzahl-Zielgröße auf Änderungen der Werte von Steuergrößen reagiert und wie diese \"Empfindlichkeit\" "]
[null,null,"       inhaltlich zu werten ist."]
[null,null,"  (5) Zu allen Kennzahlen können mit variierbaren Beispiel-Daten Berechnungen durchgeführt werden."]
[null,null,"  (6) Da viele betriebswirtschaftlicher Kennzahlen auf Daten der Bilanz sowie der Gewinn- und Verlustrechnung (GuV)"]
[null,null,"       basieren, besteht in diesem \"SCHLAG-NACH\" die Möglichkeit, die \"eigenen\" Bilanz- und GuV-Daten  sowie weitere"]
[null,null,"       Daten in die vorbereiteten Felder der Tabelle \"BwKz_Daten1\" einzutragen (Menüpunkt \"Format\", \"Blatt einblenden\")."]
[]
[null,null,"Man sieht: Dieser \"SCHLAG-NACH\" lässt kaum Nutzer-Wünsche offen! "]

{"sheet":"Auswahl","index":1,"n_rows":14,"n_cols":6,"rows_kept":14,"cut":false,"hidden":false,"merged":[[9,2,10,5],[13,2,13,5]]}
["              ",null,null,null,"Nr."]
[null,null,null,null,1]
[null,null,null,null,"Farbe:","       Übersicht:"]
[null,null,null,null,null,"   Nr.  1  bis 23:   Bilanzkennzahlen"]
[null,null,null,null,null,"   Nr. 24 bis 37:   Erfolgskennzahlen"]
[null,null,null,null,null,"   Nr. 38 bis 43:   Cashflow-Kennzahlen"]
[null,null,null,null,null,"   Nr. 44 bis 54:   Kennzahlen mit Bezug zu Bilanz-, GuV- und CF-Daten"]
[null,null,null,null,null,"   Nr. 55 bis 102: Weitere typische Kennzahlen (alphabetisch geordnet)"]
[null,null,"Definition:"]
[null,null,"Die Bilanz als Jahresschlussbilanz ist der erste grundlegende Pflichtbestandteil eines Jahresabschlusses der Kaufleute (= Unternehmen wie buchführungspflichtige Einzelkaufleute, Personenunternehmen, Kapitalgesellschaften u. a.) . In der Bilanz sind sämtliche Vermögensgegenstände, Schulden und Rechnungsabgrenzungsposten anzusetzen, soweit sie dem Kaufmann zuzurechnen sind und gesetzlich nichts anderes bestimmt ist. Die Bilanz, als stichtagsbezogene Gegenüberstellung von Vermögen und Kapital eines Unternehmens, soll ein möglichst umfassendes und aussagekräftiges Bild über die Vermögenslage,  die Finanzlage,  die Liquiditätslage und  die Ertragslage des betreffenden Unternehmens zum Bilanzstichtag des Abschlussjahres – im Vergleich zu den Daten in den Vorjahren - vermitteln."]
[]
[]
[null,null,"Kommentar:"]
[null,null,"Die Daten der Bilanz werden im Rahmen der Bilanzanalyse für die Bildung und Auswertung einer Vielzahl von Kennzahlen genutzt, mit dem Ziel,  Aussagen zur Vermögens-, Finanz-, Ertrags- und Liquiditätslage eines Unternehmens zu erarbeiten. Da alle in den Bilanzkennzahlen verwendeten Daten stichtags- und vergangenheitsbezogen sind, ist die Aussagefähigkeit der Kennzahlen allerdings eingeschränkt. In diesem \"SCHLAG-NACH\" werden 22 Einzelkennzahlen der Bilanzanalyse definiert."]

{"sheet":"Kennzahlen","index":2,"n_rows":102,"n_cols":4,"rows_kept":102,"cut":false,"hidden":true,"merged":[]}
[1,"01-Bilanz, Bilanzkennzahlen","Die Bilanz als Jahresschlussbilanz ist der erste grundlegende Pflichtbestandteil eines Jahresabschlusses der Kaufleute (= Unternehmen wie buchführungspflichtige Einzelkaufleute, Personenunternehmen, Kapitalgesellschaften u. a.) . In der Bilanz sind sämtliche Vermögensgegenstände, Schulden und Rechnungsabgrenzungsposten anzusetzen, soweit sie dem Kaufmann zuzurechnen sind und gesetzlich nichts anderes bestimmt ist. Die Bilanz, als stichtagsbezogene Gegenüberstellung von Vermögen und Kapital eines Unternehmens, soll ein möglichst umfassendes und aussagekräftiges Bild über die Vermögenslage,  die Finanzlage,  die Liquiditätslage und  die Ertragslage des betreffenden Unternehmens zum Bilanzstichtag des Abschlussjahres – im Vergleich zu den Daten in den Vorjahren - vermitteln.","Die Daten der Bilanz werden im Rahmen der Bilanzanalyse für die Bildung und Auswertung einer Vielzahl von Kennzahlen genutzt, mit dem Ziel,  Aussagen zur Vermögens-, Finanz-, Ertrags- und Liquiditätslage eines Unternehmens zu erarbeiten. Da alle in den Bilanzkennzahlen verwendeten Daten stichtags- und vergangenheitsbezogen sind, ist die Aussagefähigkeit der Kennzahlen allerdings eingeschränkt. In diesem \"SCHLAG-NACH\" werden 22 Einzelkennzahlen der Bilanzanalyse definiert."]
[{"$f":"A1+1","v":2},"02-Anlagendeckung-1","Die Kennzahl \"Deckungsgrad des Anlagevermögens\" (dgr1) gibt darüber Auskunft, zu welchem Prozentsatz das auf der Aktiv-Seite der Bilanz eines Unternehmens zum Bilanzstichtag ausgewiesene Anlagevermögen durch Mittel des Eigenkapitals gedeckt ist. Es geht also um die Beantwortung der Frage, ob jene Güter, die dauerhaft dem Geschäftsbetrieb des Unternehmens dienen sollen, rechnerisch durch Eigenkapital abgedeckt sind. Ein Ziel von drg1 = 100 % wird in der Praxis aber kaum erreicht.","Der Deckungsgrad drg1 kann zwar leicht aus den Bilanzdaten ermittelt werden, es ist aber zu beachten, dass das tatsächlich genutzte Anlagevermögen ggf. durch geleaste Anlagengüter zu niedrig ausgewiesen wird. Auch ist zu beachten, dass neben der wertmäßig ausgewiesenen Höhe des Anlagevermögens auch die Zusammensetzung des AV im Branchenvergleich sehr unterschiedlich sein kann."]
[{"$f":"A2+1","v":3},"03-Anlagendeckung-2","Der Deckungsgrad dgr2 gibt darüber Auskunft, in welchem Ausmaß [in Prozent] das Anlagevermögen [AV] eines Unternehmens durch Eigenkapital (EK) und durch langfristiges Fremdkapital (FK) gedeckt ist. Die Ermittlung der Anlagendeckung-2 wird im Rahmen der Bilanzanalyse ausgeführt, um rein rechnerisch zu prüfen, ob wenigstens unter Einbeziehung des langfristig verfügbaren  Fremdkapitals eine ausreichende Deckung des Anlagevermögens erreicht wird. Ziel ist,  einen  drg2-Wert von mehr als 100 % abzusichern. Dies entspricht dem Grundgedanken der \"Goldenen Bilanzregel\".","Zum langfristigen Fremdkapital zählen vor allem langfristige Rückstellungen (z. B. Pensionsrückstellungen) sowie langfristige Kredite. Bei einem Deckungsgrad drg2 > 120 % erschließen sich für das betreffende Unternehmen nicht nur entsprechende Handlungsmöglichkeiten im Bereich des kurzfristigen Fremdkapitals, sondern es kann dann auch jener Teil des Umlaufvermögens abgedeckt werden, der unabdingbar für die Aufrechterhaltung der Leistungserstellung benötigt wird bzw. der nicht kurzzeitig in liquide Mittel umgesetzt werden kann (siehe Anlagendeckung-3)."]
[4,"04-Anlagendeckung-3","Der Deckungsgrad dgr3 gibt darüber Auskunft, in welchem Ausmaß [in Prozent] das Anlagevermögen (AV) sowie das langfristig gebundene Umlaufvermögen (lfrUV) eines Unternehmens durch Eigenkapital (EK) und durch langfristiges Fremdkapital (FK) gedeckt ist. Die Ermittlung der Anlagendeckung-3 wird im Rahmen der Bilanzanalyse ausgeführt, um rein rechnerisch zu prüfen, ob nicht nur das Anlagevermögen, sondern auch das ständig  benötigte Umlaufvermögen  durch das Eigenkapital , zuzüglich des langfristig verfügbaren  Fremdkapitals, gedeckt ist. Auch hier gilt, dass der so ermittelte Deckungsgrad einen Wert größer 100 % erreichen sollte.","Die betriebswirtschaftlich orientierten Finanzierungsregeln verlangen eine sog. Fristenkongruenz, und zwar in dem Sinne, dass die Fristen der Kapitalverwendung (= vermögensseitige Investierung) mit den Fristen der Kapitalherkunft (= Finanzierung) übereinstimmen. Dies gilt nicht nur in Bezug auf das Anlagevermögen, sondern betrifft auch jenen Teil des Umlaufvermögens, der - wertmäßig -  als \"eiserner Bestand\" stets verfügbar sein muss, um die Prozesse der Leistungserstellung und -verwertung aufrecht erhalten zu können. Zu diesem \"eisernen Bestand\" gehören  vor allem ein Mindestbestand an Vorräten (Roh-, Hilfs- und Betriebsstoffe) und  ein Mindestbestand an liquiden bzw. liquidierbaren Mitteln."]
[5,"05-Anlagenintensität","Die Kennzahl \"Anlagenintensität\"  gibt darüber Auskunft, welchen Anteil [in Prozent das Anlagevermögen am Gesamtvermögen (= Bilanzsumme) eines Unternehmens hat. Es handelt sich hier somit um eine Kennzahl zur Verdeutlichung der Vermögensstruktur in der Bilanz eines Unternehmens.","Es liegt auf der Hand, dass die Anlagenintensität in solchen Wirtschaftsbereichen (wie Grundstoffindustrie oder Schwermaschinenbau) besonders hoch ist. Bei einem hohen Kennzahlenwert ist zu prüfen, ob zur Sicherung der Anlagendeckung auch entsprechende Finanzierungsquellen (Eigenkapital und langfristiges Fremdkapital) genutzt werden. Zu beachten ist, dass mit einer hohen Anlagenintensität auch hohe Fixkosten (Abschreibungen, Zinsen u. a.) sowie eine geringere Reaktionsfähigkeiten auf veränderte Produktions- und Marktbedingungen verbunden sind. Aufgrund des Erfordernisses der notwendigen Anlagendeckung über langfristig verfügbare finanzielle Mittel ist in Unternehmen mit hoher Anlagenintensität auch die finanzielle Flexibilität geringer."]
[6,"06-Effektivverschuldung","Die Kennzahl \"Effektivverschuldung\" wird als Differenz zwischen a) dem \"Fremdkapital \" (abzüglich der Position \"Pensionsrückstellungen\") einerseits und b) dem \"kurzfristigen (monetären) Umlaufvermögen\" andererseits ermittelt. Die Effektivverschuldung zeigt damit auf, inwieweit den eingegangenen Verbindlichkeiten liquide bzw. schnell liquidierbare Mittel gegenüberstehen, die unmittelbar zu deren Minderung (Tilgung) eingesetzt werden können. ","Eine geringe Effektivverschuldung wird als Zeichen für ein wirtschaftlich gesundes Unternehmen mit hoher Kreditwürdigkeit) angesehen, da in diesem Falle angenommen werden kann, dass das Unternehmen in der Lage ist, über Umsätze ausreichend eigene Mittel zu generieren und daher nur im geringeren Maße auf eine Fremdfinanzierung angewiesen ist. Bei der Bewertung der Effektivverschuldung ist auch der Zusammenhang zu den Liquiditätsgraden sowie zu anderen Kennzahlen (z. B. theoretische Tilgungsdauer) zu beachten. "]
[7,"07-Eigenkapitalquote","Die Kennzahl \"Eigenkapitalquote\" bringt zum Ausdruck, zu welchem prozentualen Anteil das Gesamtvermögen (= Gesamtkapital) eines Unternehmens durch Mittel abgedeckt ist, die in ihrem abstrakten Gegenwert - rein rechnerisch - dem in der Bilanz ausgewiesenen Eigenkapital entsprechen. ","Die Kennzahl \"Eigenkapitalquote\" wird insbesondere bei der Beurteilung der Kreditwürdigkeit eines Unternehmens und der finanzseitigen Solidität seiner Geschäftstätigkeit herangezogen. Je höher die Eigenkapitalquote, desto höher ist dann offenbar auch die finanzielle Unabhängigkeit des betreffenden Unternehmens. Außer dem reinen Zahlwert der Eigenkapitalquote ist ferner die Struktur des Eigenkapitals (insbesondere die Höhe eigener Rücklagen) zu beachten."]
[8,"08-Eingesetztes Kapital (Capital Employed)","Als \"Eingesetztes Kapital\" (= Capital Employed) wird das im Unternehmensprozess beanspruchte betriebsnotwendige Kapital bezeichnet, für das die Eigen- und Fremdkapitalgeber einen Verzinsungsanspruch erheben. Alle nicht betriebsnotwendigen Vermögensgegenstände sind somit heraus zu rechnen. Von dieser korrigierten Bilanzsumme (Gesamtvermögen = Gesamtkapital) werden dann noch die Positionen des kurzfristigen Fremdkapitals (Laufzeit <  1 Jahr) abgezogen, da diese Mittel unverzinslich zur Verfügung gestellt werden. Das \"eingesetzte Kapital\" wird auch als \"investiertes Kapital\" bezeichnet.","Entscheidendes Kriterium für die Bestimmung des 'eingesetzten Kapitals' ist die Frage, ob die durch das Kapital finanzierten Vermögensgegenstände ertrag- bzw. zinsbringend sind oder sein müssen. Aus dieser Sicht ist es durchaus sinnvoll, dass einige Unternehmen zur Position 'eingesetztes Kapital' auch Leasinggegenstände (mit längerfristriger Nutzungszeit) rechnen. Dies betrifft zum Beispiel Fahrzeuge (Lkw, Pkw). Alle Positionen des Fremdkapitals, die in der GuV keinen direkten Aufwand verursachen (wie Verbindlichkeiten aLuL), werden zum abzusetzenden kurzfristigen Fremdkapital gerechnet. Siehe auch Kennzahl 'Return on Employed Capital' (ROCE) sowie Kennzahl 'Working Capital'."]
[9,"09-Finanzregel, goldene","Die 'goldene Finanzregel' ist eine wichtige Orientierung für die Ausgestaltung der Unternehmensfinanzierung. Diese Regel verlangt eine sog. Fristenkongruenz. Dies bedeutet, dass die dauerhaft bzw. langfristig im Unternehmensprozess einzusetzenden Vermögensgegenstände auch über langfristig verfügbares Kapital (Eigenkapital, langfristiges Fremdkapital) finanziert und damit abgedeckt sein sollten. Zu diesen Vermögensgegenständen gehören die Positionen des Anlagevermögens sowie ein \"eiserner Bestand\" an dauerhaft gebundenem Umlaufvermögen (Vorräte, liquide Mittel). Die darüber hinaus im Unternehmensprozess benötigten Gegenstände des Umlaufvermögens, die nur kurzzeitig am Kreislauf des Umsatzprozesses teilnehmen, sollten über kurzfristiges Fremdkapital (insbesondere durch Lieferantenkredite) finanziert werden. ","Kurzformel für die goldene Finanzierungsregel bei der Gegenüberstellung von Kapitalverwendung (= Investierung) und Kapitalbeschaffung (= Finanzierung): \"Lang - lang\" und \"kurz - kurz\". Sie hierzu auch die Kennzahlen zur Anlagendeckung (1, 2, 3)."]
[10,"10-Fonds de Reglement","Die Kennzahl \"Fonds de roulement\" weist jenen Betrag des langfristigen Kapitals aus, der nicht durch den Betrag des Anlagevermögens absorbiert wird. Ist dieser Betrag positiv, dann gilt die Einhaltung des  finanzwirtschaftlichen Gleichgewichts (Einzahlungen > = Auszahlungen) im Unternehmensprozess als gesichert.","Die Kennzahl \"Fonds de roulement\" wird vor allem in der Wirtschaftspraxis in Frankreich besonders beachtet. Inhaltlich entspricht diese Kennzahl dem \"Working Capital\", also jenem Betrag an Umlaufvermögen, der rechnerisch verbleibt, wenn vom Umlaufvermögen die \"erhaltenen Anzahlungen\" sowie \"kurzfristige Verbindlichkeiten\" subtrahiert werden."]
[11,"11-Fremdkapitalquote","Die Kennzahl \"Fremdkapitalquote\" (= \"Anspannungskoeffizient\") kennzeichnet generell den prozentualen Anteil des Fremdkapitals am Gesamtkapital.  Diese Kennzahl wird im Rahmen der Bilanzanalyse als Indikator der finanziellen Stabilität eines Unternehmens angesehen. Orientierungs-Zielwert : ca. 50 %. Bei detaillierteren Analysen wird zwischen einer lang- und einer kurzfristigen Fremdkapitalquote unterschieden, je nach dem, ob im Zähler der Kennzahl nur das langfristige Fremdkapital oder nur das kurzfristige Fremdkapital ausgewiesen wird. Damit wird zugleich die Fremdkapitalstruktur verdeutlicht.","Bei einer ausgewiesenen hohen Fremdkapitalquote sind Fremdkapitalgeber weniger bereit, dem Unternehmen weitere Mittel (z. B. Kredite) bereitzustellen. Zu beachten ist in diesem Kontext jedoch der Leverage-Effekt (siehe dort), denn bei Zunahme des Fremdkapitals kann durchaus die Eigenkapitalrentabilität verbessert werden, wenn die Gesamtkapitalrentabilität (%) höher als der Fremdkapitalzinssatz (%) ist. Wichtig ist aber auch, die Fremdkapitalstruktur (Verhältnis zwischen dem langfristigen und dem kurzfristigen Fremdkapital) zu beachten, denn ein hoher Anteil an langfristigem Fremdkapital gibt dem Unternehmen mehr finanzielle Sicherheit."]
[12,"12-Konstitution","Als \"Konstitution\"  wird im Rahmen der Bilanzanalyse das stichtagsbezogene Verhältnis zwischen dem Anlagevermögen und dem Umlaufvermögen eines Unternehmens bezeichnet. Die Bewertung dieser Größe ist nur sinnvoll, wenn es um einen Periodenvergleich oder um den Betriebsvergleich innerhalb einer Branche geht. Eine hohe Konstitution weisen vor allem Unternehmen der Grundstoffindustrie und der Energiewirtschaft auf. Dagegen werden  Handelsunternehmen eine geringere Konstitution ausweisen, weil die Warenbestände zum Umlaufvermögen gehören.","Bei einem hohen Wert der Kennzahl \"Konstitution\" ist zu prüfen, ob zur Sicherung der Anlagendeckung auch entsprechende Finanzierungsquellen (Eigenkapital und langfristiges Fremdkapital) genutzt werden. Zu beachten ist, dass mit einer hohen Konstitution auch hohe Fixkosten (Abschreibungen, Zinsen u. a.) sowie geringere Reaktionsfähigkeiten auf veränderte Produktions- und Marktbedingungen verbunden sind. "]
[13,"13-Liquidität 1. Grades (Bar-Liquidität)","Die Kennzahl \"Liquidität 1. Grades\"  (= Bar-Liquidität bzw. cash ratio) kennzeichnet das prozentuale Verhältnis der zum Bilanzstichtag verfügbaren liquiden Mittel (Bankguthaben, Kassenbestand u. a.) zum kurzfristigen Fremdkapital (Verbindl. aus Lieferungen und Leistungen, sonstiges kurzfristiges Fremdkapital mit Laufzeit < 1 Jahr). Orientierungs-Zielvorgabe: Der 1. Liquiditätsgrad sollte mindestens Werte zwischen  20 ... 35 % erreichen. ","Kritische Anmerkung: Da dieser Liquiditätsgrad im Nachgang  aus stichtagsbezogenen Bilanzdaten berechnet wird, werden anstehende laufende Zahlungsverpflichtungen mit Bezug zu Gehältern, Mieten und dgl. explizit nicht abgebildet, obgleich sie bei Fälligkeit die Liquiditätssituation des betreffenden Unternehmens belasten.   Ein berechneter hoher Wert für diesen Liquiditätsgrad könnte daher zu fehlerhaften Deutungen der Liquiditätssituation des betreffenden Unternehmens verleiten."]
[14,"14-Liquidität 2. Grades (einzugsbedingte L.)","Die Kennzahl \"Liquidität 2. Grades\"  (=  einzugsbedingte Liquidität bzw. quick ratio) wird als prozentuales Verhältnis des zum Stichtag vorhandenen monetären Umlaufvermögens zum kurzfristigen Fremdkapital ermittelt. Das monetäre Umlaufvermögen umfasst - außer den liquiden Mitteln - auch die  in \"Cash\" umwandelbare Gegenstände des Umlaufvermögens (Positionen \"Forderungen\" sowie \"Wertpapiere des UV\").  Orientierungs-Zielvorgabe: Der 2. Liquiditätsgrad sollte mindestens Werte zwischen  100 ... 120 % erreichen. ","Hohe Bestände an Forderungen, insbesondere aus Verkäufen mit Zahlungsziel (= Forderungen aus Lieferungen und Leistungen) können die Liquiditätssituation eines Unternehmens zwar \"optisch aufhübschen\", falls jedoch die betreffenden Kunden keine besondere Zahlungsmoral zeigen, kann es dennoch bei anstehenden eigenen termingebundenen Zahlungsverpflichtungen  zu Liquiditätsproblemen kommen."]
[15,"15-Liquidität 3. Grades (umsatzbedingte L.)","Die Kennzahl \"Liquidität 3. Grades\"  (umsatzbedingte Liquidität, current ratio) wird als prozentuales Verhältnis des zum Stichtag vorhandenen Umlaufvermögens (= monetäres Umlaufvermögen, zuzgl.. Vorratsvermögen, abzügl. erhaltener Anzahlungen) zum kurzfristigen Fremdkapital ermittelt. Orientierungs-Zielvorgabe: Der 3. Liquiditätsgrad sollte mindestens Werte zwischen  140 ... 170 % erreichen. ","Liegt der Wert für diesen Liquiditätsgrad weit über 200 %, dann sind in der Regel die Lagerbestände (Vorräte an RHB sowie an unfertigen und fertigen Erzeugnissen/Leistungen) zu hoch. Diese Vorräte binden zu viel Kapital, sie müssen dann schnellstens abgebaut werden."]
[16,"16-Rücklagenquote","Die Kennzahl  \"Rücklagenquote\" zeigt an, welchen prozentualen Anteil die offen in der Bilanz ausgewiesenen Rücklagen (Kapitalrücklagen, Gewinnrücklagen) am gesamten Eigenkapital haben. Damit wird im Periodenvergleich sichtbar, ob und in welchem Umfang ein Unternehmen seine Haftungsbasis durch Eigenkapitalzuführung der Unternehmenseigner sowie durch Gewinnthesaurierung (Einstellen von Gewinnanteilen in Rücklagen) verbessert oder dies vernachlässigt hat. Rücklagen - als Bestandteil des Eigenkapitals - haben ihren substanziellen Gegenwert im Vermögen eines Unternehmens.","Rücklagen verdeutlichen den Umfang der Selbstfinanzierungskraft des Unternehmens. Als eigenständige Bilanzposition sind Rücklagen nur im Jahresabschluss von Kapitalgesellschaften - neben dem konstanten Ausweis des Nominalkapitals - zu kennzeichnen. Bei Einzelunternehmen und Personengesellschaften werden Rücklagen den Eigenkapitalkonten oder gesonderten Beteiligungskonten zugewiesen. Bei hohen Rücklagen mindert sich das Risiko, dass in einer Krisensituation das gezeichnete Eigenkapital aufgezehrt wird."]
[17,"17-Rückstellungsquote","Die Kennzahl \"Rückstellungsquote\" beschreibt den prozentualen Anteil der in der Bilanz ausgewiesenen Rückstellungen am Gesamtkapital zum Bilanzstichtag.  Damit wird aufgezeigt, in welchem Umfang das betreffende Unternehmen durch Rückstellungen (Pensionsrückstellungen, sonstige Rückstellungen) finanziert ist und wie sich diese Situation im Periodenvergleich verändert hat.","Eine Finanzierung aus Rückstellungswerten ist sachlich nur möglich, wenn Rückstellungen aufwandswirksam gebildet wurden und damit gewinnmindernd wirken. Zu beachten ist, dass Rückstellungen mit einer Restlaufzeit von mehr als einem Jahr gem. § 253 Abs. 2 HGB abzuzinsen sind (Einzelheiten: sieh dort)."]
[18,"18-Sachanlagenintensität","Die Kennzahl \"Sachanlagenintensität\" wird im Rahmen der Bilanzanalyse als prozentualen Anteil des Sachanlagenvermögens am Gesamtvermögen ermittelt, um so aufzuzeigen, welches Gewicht das Sachanlagenvermögen im Gesamtvermögen eines Unternehmens hat und welches Kapital damit in dieser Position gebunden ist. Eine hohe Sachanlagenintensität verursacht immer auch einen hohen Fixkostenanteil und i. d. R. auch eine geringere Reaktionsfähigkeit auf technische Neuerungen bzw. auf veränderte Marktbedingungen.","Aussagen zur  Sachanlagenintensität sind sachlich nur bei Betriebsvergleichen innerhalb einer Branche sinnvoll, denn es liegt auf der Hand, dass die Sachanlagenintensität in der Grundstoffindustrie oder im Schwermaschinenbau wesentlich höher sein wird als in anderen Bereichen der Wirtschaft. Zu beachten ist, dass die Kennzahl \"Sachanlagenintensität\" auch als ein Wirkungsgrad im Prozess der Leistungserstellung interpretiert werden kann: In diesem Kontext besagt die Kennzahl, welche Wertgröße an Sachanlagen [EUR] im Durchschnitt eingesetzt werden muss, um eine Leistung im Wert von 1000 EUR zu erstellen. Die so ermittelten  Kennzahlwerte werden wiederum von Branche zu Branche unterschiedlich sein."]
[19,"19-Selbstfinanzierungsgrad","Durch die Bildung der Kennzahl  \"Selbstfinanzierungsgrad\" soll aufgezeigt werden, welchen prozentualen Anteil die in der Bilanz ausgewiesenen Gewinnrücklagen am gesamten Eigenkapital haben. Damit wird im Periodenvergleich sichtbar, ob und in welchem Umfang ein Unternehmen seine Haftungsbasis durch Gewinnthesaurierung (Einstellen von Gewinnanteilen in Rücklagen) verbessert oder dies vernachlässigt hat (siehe auch Rücklagenquote). Sofern in der Bilanz keine Kapitalrücklagen ausgewiesen werden, stimmt die Kennzahl \"Selbstfinanzierungskraft\" mit der Kennzahl \"Rücklagenquote\" überein.","Gewinnrücklagen machen bei einer Bilanzanalyse sichtbar, inwieweit ein Unternehmen in der Vergangenheit  in der Lage war, nicht nur Gewinne (nach Steuern)  zu erwirtschaften, sondern zugleich bei den Entscheidungen über die Gewinnverwendung darauf geachtet hat, dass Gewinnanteile immer wieder in Rücklagen eingestellt werden. Nur auf diese Weise kann sich ein Unternehmen in die Lage versetzen, notwendige Investitionen mit Zugriff auf Gewinnrücklagen selbst zu finanzieren. Im Falle eintretender Verluste kann darüberhinaus verhindert werden, dass das nominale Eigenkapital aufgezehrt wird."]
[20,"20-Tilgungsfähigkeit","Die Kennzahl \"Tilgungsfähigkeit\" beschreibt das prozentuale Verhältnis zwischen den kurzfristigen Forderungen und den kurzfristigen Verbindlichkeiten. Damit soll sichtbar werden, in welchem Umfang das betreffende Unternehmen in der Lage wäre, die Verpflichtungen aus kurzfristigen Verbindlichkeiten durch Mittel der kurzfristigen Forderungen (nach Inkasso) zu erfüllen.","Je mehr die Mittel aus kurzfristigen Forderungen die Beträge der kurzfristigen Verbindlichkeiten übertreffen, desto günstiger wird die Zahlungsfähigkeit des betrachteten Unternehmens bewertet. Bei einem Kennzahlenwert von kleiner 100 % könnte es zu Zahlungsproblemen kommen, wenngleich die Termine für Zahlungseingänge bzw. Zahlungsverpflichtungen nicht aus der Bilanz erkennbar sind. Daher sind zur besseren Beurteilung dieser Kennzahl die Werte der Kennzahlen \"Debitorenfrist\" bzw. Kreditorenfrist\" mit heranzuziehen."]
[21,"21-Umlaufintensität","Die Kennzahl \"Umlaufintensität\" gibt darüber Auskunft, welchen Anteil [in %] das Umlaufvermögen am Gesamtvermögen (= Bilanzsumme) eines Unternehmens hat. Es handelt sich hier somit um eine Kennzahl zur Verdeutlichung der Vermögensstruktur in der Bilanz eines Unternehmens (siehe auch Anlagenintensität). Die Bilanzposition \"Umlaufvermögen\" umfasst die liquiden Mittel, die Wertpapiere des Umlaufvermögens, die Forderungen sowie die Vorräte (an Roh-, Hilfs- und Betriebsstoffen, an fertigen und unfertigen Erzeugnissen/Leistungen und an Waren).","Die ermittelten Werte der Kennzahl \"Umlaufintensität\" sind branchenbezogen zu beurteilen, denn im Bereich der Industrie und des Handels wird die Umlaufintensität höher sein als beispielsweise im Dienstleistungsgewerbe. Entsprechend der \"goldenen Finanzregel\" sollten Gegenstände des Umlaufvermögens aus Quellen des kurzfristigen Fremdkapitals finanziert werden, da diese Gegenstände nur kurzzeitig am Kreislauf des Umsatzprozesses des Unternehmens teilnehmen."]
[22,"22-Verschuldungsgrad, statischer","Die Kennzahl \"statischer Verschuldungsgrad\" wird im Rahmen der Bilanzanalyse als Verhältnis von Fremdkapital zu Eigenkapital ermittelt. Ein Verschuldungsgrad größer 1 bzw. größer 100 % zeigt an, dass das in der Bilanz des betreffenden Unternehmens ausgewiesene Vermögen zum überwiegenden Teil durch Fremdkapital finanziert wurde. ","Laut der sog. vertikalen Finanzierungsregel sollte das Verhältnis von Fremdkapital zum Eigenkapital etwa 1 : 1 sein. Um die finanzielle Unabhängigkeit des Unternehmens aufrechtzuerhalten bzw. zu verbessern, muss ein Verschuldungsgrad < 1 (bzw. < 100 %) angestrebt werden. Ein Verschuldungsgrad über 1 (bzw. über 100 %) schränkt die Möglichkeiten ein, im Bedarfsfalle weiteres Fremdkapital aufnehmen zu können."]
[23,"23-Working Capital (absolut, relativ)","Working Capital (WCap) ist eine angloamerikanische Bezeichnung für das Umlaufvermögen. Als absolute Bilanzkennzahl  umfasst das WCap das stichtagsbezogen ausgewiesene Umlaufvermögen, abzüglich erhaltener Anzahlungen und abzüglich des kurzfristigen Fremdkapitals. Betriebswirtschaftliches Ziel: WCap > 0!  Als relatives Working Capital wird das prozentuale Verhältnis von kurzfristigem Vermögen zum kurzfristigen Fremdkapital bezeichnet.","Das Working Capital als absoluter Wert repräsentiert jenen Teil des kurzfristigen Vermögens (= Umlaufvermögen), der - rein rechnerisch - nicht für die Deckung der kurzfristigen Zahlungsverpflichtungen gebunden ist. Diese Aussage gilt analog auch für den relativen Ausdruck des WCap. Je größer der Wert des berechneten Working Capitals, desto positiver wird die Liquiditätslage des betreffenden Unternehmens bewertet. Allerdings ist zu beachten, dass nach dem Bilanzstichtag weitere Zahlungsverpflichtungen anstehen können, deren Termine nicht aus den Bilanzdaten ersichtlich sind."]
[24,"24-Gewinn- und Verlustrechnung (GuV)","Die Pflicht zum Aufstellen einer Erfolgsrechnung als \"Gewinn- und Verlustrechnung\" (GuV) wird für alle Kaufleute in § 242 Abs. 2, 3 HGB wie folgt bestimmt: Der Kaufmann \".. hat für den Schluss eines jeden Geschäftsjahres eine Gegenüberstellung der Aufwendungen und Erträge des Geschäftsjahres (Gewinn- und Verlustrechnung) aufzustellen. (3) Die Bilanz und die Gewinn- und Verlustrechnung bilden den Jahresabschluss\". Aufbau und Gliederung einer GuV ist - wie bei der Bilanz - davon abhängig, welche Rechtsform und welche Größe das betreffende Unternehmen aufweist. Die handelsrechtlichen Grundlagen und Vorgaben für das Erstellen einer GuV durch Kapitalgesellschaften sind in den §§ 275 bis 277 HGB enthalten. Danach gilt: \"Die Gewinn- und Verlustrechnung ist in Staffelform nach dem Gesamtkostenverfahren oder dem Umsatzkostenverfahren aufzustellen.\" [§ 275 Abs. 1 HGB].","Eine Ausnahme von der Pflicht zur Aufstellung einer GuV besteht nach § 241a HGB für Einzelkaufleute, die mit ihrem Unternehmen an zwei aufeinanderfolgenden Abschlussstichtagen die beiden Schwellwerte Umsatz (= 500.000 EUR) und Gewinn (= 50.000 EUR) nicht überschreiten. Personenunternehmen (Einzelkaufmann, OHG, KG usw.) haben bei der Erstellung der GuV-Rechnung die Grundsätze ordnungsgemäßer Buchführung zu beachten. Eine verbindliche Gliederung der GuV-Rechnung ist für diese Unternehmen nicht vorgegeben. In der Praxis richten sich diese Unternehmen jedoch weitgehend an die für Kapitalgesellschaften vorgegebene Gliederung der GuV-Rechnung."]
[25,"25-Betriebsergebnis","Das Betriebsergebnis ist die Differenz zwischen der  - in einer  Rechnungsperiode (Monat, Quartal, Geschäftsjahr) erstellten -  LEISTUNG und den hierfür aufgewendeten KOSTEN. Dieses Ergebnis ist die Maßgröße für die Bestimmung des (betriebswirtschaftlich ausdrückbaren) Erfolges aus dem eigentlichen Betriebsprozess (entsprechend dem definierten Unternehmenszweck). Im Rahmen der Erfolgsrechnung ist das Betriebsergebnis das erste wichtige Zwischenergebnis auf dem Wege zur Ermittlung des Jahresergebnisses (Jahresüberschuss bzw. (Jahresfehlbetrag).","Nach den handelsrechtlichen Vorgaben für die Gliederung der Gewinn- und Verlustrechnung (§ 275 HGB)  ist eine Position \"Betriebsergebnis\" nicht explizit auszuweisen. Dennoch hat diese Kennzahl eine überaus wichtige Bedeutung bei der Beurteilung des Erfolgs der Wirtschaftstätigkeit eines Unternehmens. Wichtig ist, zu beachten, dass sich die beiden in § 275 HGB aufgeführten Verfahren der GuV-Rechnung im Wesentlichen nur in der Vorgehensweise bei der Ermittlung des Betriebsergebnisses unterscheiden, obgleich die Rechnung nach beiden Verfahren schlussendlich zum gleichen Resultat für die Kennzahl \"Betriebsergebnis\" führen (müssen). "]
[26,"26-EBT, EBT-Marge","Als EBT (Earnings Before Taxes) wird das \"Ergebnis vor Steuern\" bezeichnet. Die Ermittlung einer solchen Kennzahl eignet sich vor allem im Hinblick auf den Vergleich des Erfolgs der Wirtschaftstätigkeit von Unternehmen im internationalen und im rechtsformübergreifenden Rahmen, wobei auch möglichst ein Zeitvergleich vorgenommen werden sollte. Um den Einfluss der Unternehmensgröße weitgehend zu eliminieren, wird der EBT-Wert in Bezug zum Umsatz gesetzt. Das so ermittelte Ergebnis wird als EBT-Marge [%] bezeichnet.","Da im \"Ergebnis vor Steuern\" auch das außerordentliche Ergebnis enthalten ist, kann der EBT-Kennzahlenwert durch Einmal-Effekte (ao Aufwendungen und/oder ao Erträge) verwässert werden. Gibt es in einem Unternehmen relativ selbständige strategische Geschäftseinheiten (SGE), wird die Kennzahl EBT auch als Steuerungskennzahl im Controlling eingesetzt."]
[27,"27-EBIT, EBIT-Marge","Die Kennzahl \"EBIT\" zeigt das finanzielle Ergebnis vor \"Zinsaufwendungen\" und \"Steuern\" an (EBIT = Earnings Before Interests and Taxes). Durch die Bildung dieser Kennzahl können die finanziellen Ergebnisse von verschiedenen Unternehmen vergleichbarer gemacht werden, weil in der Kennzahl EBIT der Einfluss von Zinsaufwendungen (und damit der Einfluss der Verschuldung) sowie der Einfluss der sich i. d. R. ändernden Besteuerung der Unternehmen eliminiert wird. Um den Einfluss der Unternehmensgröße weitgehend zu eliminieren, wird der EBIT-Wert in Bezug zum Umsatz gesetzt. Das so ermittelte Ergebnis wird als EBIT-Marge [%] bezeichnet (siehe auch Umsatzrentabilität).","Die Kennzahl \"EBIT-Marge\" wird sehr häufig als Maß zur Bewertung der operativen Profitabilität bzw.  Ertragskraft von Unternehmen bei Betriebsvergleichen herangezogen, obgleich ihre Ermittlung nicht eindeutig und allgemein definiert ist. Gibt es in einem Unternehmen relativ selbständige strategische Geschäftseinheiten (SGE), wird die Kennzahl \"EBIT\" auch als Steuerungskennzahl im Controlling eingesetzt."]
[28,"28-EBITDA, EBITDA-Marge","Die Kennzahl \"EBITDA\" zeigt das finanzielle Ergebnis vor \"Zinsaufwendungen\", \"Steuern\" und \"Abschreibungen\" an (EBITDA = Earnings Before Interests, Taxes, Depreciation and Armortization). Durch die Bildung dieser Kennzahl soll nicht nur der Einfluss von Zinsaufwendungen und von sich ändernden Regeln bei der Besteuerung der Unternehmen eliminiert werden, sondern es wird damit auch angestrebt,  den Einfluss der durch Investitionen und andere Faktoren bedingten Abschreibungen auf die Höhe des Ergebnisses auszuschalten. Mit anderen Worten: Es geht um einen Vergleich von „nicht verschuldeten Unternehmen“ nach „verdienten Ergebnissen vor Zinsen, Steuern und Abschreibungen“. Um den Einfluss der Unternehmensgröße weitgehend zu eliminieren, wird der EBITDA-Wert in Bezug zum Umsatz gesetzt. Das so ermittelte Ergebnis wird als EBITDA-Marge [%] bezeichnet (siehe auch Umsatzrentabilität).","Die Kennzahl EBITDA eignet sich besonders zur Bewertung des erreichten Niveaus der betrieblichen Wertschöpfung sowie zur Beurteilung der Ertragskraft in Phasen erhöhter Investitionstätigkeit (Wachstumsphasen). Diese Kennzahl ist somit ein starker Indikator für die Beurteilung der erreichten Selbstfinanzierungskraft von Unternehmen. Da aber Investitionen der Sicherung der Zukunftsfähigkeit eines Unternehmens dienen, lassen sich aus der Kennzahl EBITDA keine Erkenntnisse betreffs der langfristigen Stabilität der betreffenden Wirtschaftseinheit ableiten. Die Ermittlung der Kennzahl EBITDA aus den GuV-Daten ist dann hilfreich, wenn im Unternehmen keine Kapitalflussrechnung (mit Ausweis des \"operativen Cashflows\" (siehe dort) durchgeführt wird."]
[29,"29-Ergebnis der gewöhnlichen Geschäftstätigkeit","Das \"Ergebnis der gewöhnlichen Geschäftstätigkeit\" weist im Rahmen der GuV-Rechnung den periodenbezogenen Erfolg im Vollzug des \"normalen\" (gewöhnlichen) Geschäftsbetriebs eines Unternehmens aus. Es setzt sich zusammen aus dem Betriebsergebnis und dem Finanzergebnis der betreffenden Rechnungsperiode. Eine sachliche  Beurteilung dieses Ergebnisses bedingt einen Zeitvergleich. Hinsichtlich eines Unternehmensvergleichs sollten eher das \"Ergebnis vor Zinsen und Steuern\" (EBIT) herangezogen werden.   ","Der Ausweis des \"Ergebnisses der gewöhnlichen Geschäftstätigkeit\" gehört zu den Pflichtangaben in der GuV-Rechnung bei HGB-Jahresabschlüssen. Als erstes Zwischenergebnis in der GuV-Rechnung zeigt es den periodenbezogenen Erfolg der Unternehmenstätigkeit vor dem außerordentlichen Ergebnis und den Steuern an. Bei IFRS-Abschlüssen wird hingegen oft das \"Ergebnis vor Steuern\" (EBT) bzw. das \"Ergebnis vor Zinsen und Steuern\" (EBIT) ausgewiesen, da diese Ergebnisse im Unternehmensvergleich aussagekräftiger sind."]
[30,"30-Gewinn, Jahresergebnis","Die Kennzahl \"Gewinn\" charakterisiert im allgemeinen betriebswirtschaftlichen Verständnis den Überschuss der Erlöse (aus marktlich verwerteten = verkauften Gütern) über die für die Erstellung dieser Güter verursachten Kosten. Übersteigen hingegen die Kosten der erstellten Güter die erzielten Erlöse, ist ein \"Verlust\" zu verzeichnen. Der laut handelsrechtlichem Jahresabschluss ermittelte Gewinn ist als \"Jahresüberschuss\"  zu dokumentieren. Diese Größe setzt sich aus dem Betriebsergebnis, dem Finanzergebnis, dem außerordentlichen Ergebnis sowie dem Steueraufwand zusammen (= \"Gewinn nach Steuern\"). Ergibt sich aus dieser Rechnung ein Verlust, dann ist der entsprechende Betrag in der GuV-Rechnung zum Jahresabschluss als \"Jahresfehlbetrag\" auszuweisen. Als steuerlicher Gewinn wird laut § 4 EStG  der Überschuss der sog. \"Betriebseinnahmen\" über die \"Betriebsausgaben\" bezeichnet. Diese Gewinngröße ist mittels Betriebsvermögensvergleich oder durch die Einnahmen-Überschuss-Rechnung zu errechnen.","Im Jahresabschluss von Unternehmen in der Rechtsform einer Aktiengesellschaft wird der Gewinn als \"Bilanzgewinn\" deklariert. Diese Größe wird aus der GuV-Rechnung durch Einbeziehen des Gewinnvortrages sowie von Entnahmen aus Rücklagen bzw. Einstellungen in Rücklagen ermittelt. Insofern ist diese Gewinngröße kein echter periodenbezogener Erfolg. Als \"bereinigter Gewinn\" wird eine betriebswirtschaftliche Kennzahl bezeichnet, bei der aus dem periodenbezogenen Jahresüberschuss (Gewinn nach Steuern) einmalige Sondereffekte der betreffenden Periode (wie außerordentliche Erträge und außerordentliche Aufwendungen) heraus gerechnet werden."]
[31,"31-NOPAT, NOPLAT, EVA","Die Kennzahl NOPAT (Net Operating Profit After Taxes) repräsentiert ein finanzielles Ergebnis unter der theoretischen Annahme, dass der Geschäftsbetrieb eines Unternehmens ausschließlich eigenkapitalfinanziert wurde. Daher sollen auch keine Steuervorteile wirksam werden, die sich aus der Absetzbarkeit von Fremdkapitalzinsen ergeben. Im Falle, dass vom ermittelten EBIT nicht die tatsächlich im Jahresabschluss ausgewiesenen Steuern abgezogen werden, sondern diejenigen Steuern, die rein rechnerisch unter Einbeziehung eines Steuersatzes auf das EBIT selbst entfallen, erhält man die Kennzahl NOPLAT (Net Operating Profit Less Adjusting Taxes). Im Falle, dass der NOPAT-Wert den Betrag der Kapitalkosten übersteigt, hat das Unternehmen einen Mehrwert generiert. Dieser Mehrwert wird als \"Economic Value Added\" (EVA) bezeichnet. Dies Kennzahl ist bei großen Unternehmen eine Spitzenkennzahl im Controllingsystem. Die Kapitalkosten werden anhand der Renditeansprüche der Eigentümer, zuzüglich der Verzinsungsansprüche der Kapitalgeber ermittelt.","Die Kennzahl NOPAT soll deutlich machen, wie hoch die Vermögensveränderung nach Ablauf des Geschäftsjahres ausfällt, wenn der Einfluss der Finanzierungskosten eliminiert wird. Die Kennzahl NOPLAT soll den Anteilseignern darüber Auskunft geben, welcher Betrag für Ausschüttungen zur Verfügung steht. Bei der Ermittlung der Kennzahlen NOPAT bzw. NOPLAT werden oft auch außerordentliche Effekte (wie zum Beispiel Einmalaufwendungen durch Restrukturierung des Unternehmens oder Finanzergebnisse aus ermittelten Währungsdifferenzen) sowie auch Abschreibungen auf immaterielle Vermögensgegenstände heraus gerechnet, um die operative Profitabilität des Geschäftsbetriebs des Unternehmens möglichst real auszuweisen. Bei der Ermittlung der Kennzahl EVA ist zu beachten, dass der Betrag der  Eigenkapitalkosten schwer zu ermitteln ist (Lösungsansatz:  Siehe \"Ermittlung/Beispiel\")."]
[32,"32-Return On Investment (ROI) , vemögensbezogen","Die auf die Daten des Jahresabschlusses bezogene Ermittlung der Kennzahl ROI (Return On Investment) gibt an, um wie viel Prozent sich das im Geschäftsjahr investierte Kapital - ausgedrückt durch das durchschnittliche Unternehmensvermögen - real verzinst hat: ROI = EBIT *100 / durchschn. Vermögen.  Mit dem Bezug zum EBIT soll eine internationale Vergleichbarkeit der ROI-Kennzahl erreicht werden, weil auf diese Weise der Einfluss von Finanzierungskosten und von Steuerzahlungen eliminiert wird.","Die angegebene Formel der Ermittlung der ROI-Kennzahl ähnelt der Ermittlung der Gesamtkapitalrentabilität (siehe dort). Eine investitionsvorhabenbezogene Berechnung der Kennzahl ROI wird in diesem SCHLAG-NACH unter der Kennzahl \"ROI - DuPont-Schema\" aufgezeigt."]
[33,"33-ROCE,  RONA, ROIC","Die Kennzahl ROCE (Return On Employed Capital) wird als prozentuales Verhältnis des EBIT zum durchschnittlich \"eingesetzten Kapital\" (= Capital Employed) ermittelt. Damit soll verdeutlicht werden, um wie viel Prozent das aufgenommene verzinsliche Unternehmenskapital (= Vermögen ./. kurzfristiges Fremdkapital) über das operative Ergebnis EBIT verzinst wurde. Wird hingegen das operative Ergebnis EBIT ins Verhältnis zu den durchschnittlichen  \"Net Assets\" (= Anlagevermögen + Net Working Capital) gesetzt, erhält man (im Prozentausdruck) die Kennzahl RONA (Return On Net Assets). Wird die Kennzahl EBIT auf das investierte Kapital bezogen, erhält man die Kennzahl ROIC (Return On Invested Capital).","Für die Ermittlung der Kennzahlen ROCE und RONA gibt es keine einheitlichen Berechnungsgrundlagen. So werden aus den Assets oft solche Vermögensgegenstände heraus gerechnet, die nicht betrieblich genutzt werden. Auf der anderen Seite werden oft geleaste oder gemietete Vermögensgegenstände den Assets hinzugerechnet, wenn diese vollumfänglich betrieblich genutzt werden. Beide Kennzahlen dienen dem Rentabilitätsvergleich zwischen Unternehmen, vor allem im internationalen Rahmen."]
[34,"34-Steuerquote","Als Steuerquote wird das prozentuale Verhältnis zwischen den im Jahresabschluss ausgewiesenen \"Steuern vom Einkommen und Ertrag\" und dem \"Ergebnis vor Steuern\" (EBT) bezeichnet. Diese Kennzahl zeigt an, wie hoch die Belastung des Vorsteuerergebnisses durch die Ertragsteuern ist. Dies kenntlich zu machen, ist für Unternehmensvergleiche im internationalen Maßstab sehr wichtig, denn Steuervergleiche werden oft als ein wichtiges Kriterium für Standortentscheidungen herangezogen.","Zur Beachtung: Da die Fremdkapitalzinsen grundsätzlich steuerlich abzugsfähig sind, wird die Kennzahl \"Steuerquote\" vom Verschuldungsgrad des betreffenden Unternehmens beeinflusst. Bei IFRS-Abschlüssen spielen - im Vergleich zu HGB-Abschlüssen - auch latente Steuern und andere Faktoren eine wichtige Rolle, so dass es zu unterschiedlichen Werten in Bezug auf die Steuerquote kommen kann."]
[35,"35-Umsatzkosten","Gemäß § 275 Abs. 3 HGB sind im Rahmen der GuV nach dem Umsatzkostenverfahren unter Pos. 2 die  \"Herstellungskosten der zur Erzielung der Umsatzerlöse erbrachten Leistungen\" auszuweisen. Diese Kosten werden kurz auch als Umsatzkosten bezeichnet, wobei neben den Einzelkosten (Materialeinzelkosten, Fertigungslöhne, Sondereinzelkosten) ggf. auch Materialgemeinkosten, Fertigungsgemeinkosten wie auch Teile der Verwaltungskosten mit in die Umsatzkosten einbezogen werden können. Werden die Umsatzkosten ins Verhältnis zur Absatzleistung (= Umsatz) gesetzt, erhält man eine Kennzahl, die als \"Umsatzkostenintensität\" bezeichnet wird.","In die Umsatzkosten sind alle auf die Absatzleistung entfallenden Herstellungsaufwendungen einzurechnen, gleich, in welcher Periode diese Aufwendungen verursacht wurden. Somit erfassen die Umsatzkosten auch jene in Vorräten an fertigen und unfertigen Erzeugnissen aktivierten Aufwendungen, wenn diese Vorräte nunmehr in die Absatzleistung eingegangen sind. Die Umsatzkostenintensität ist ein Indikator der Kostenwirtschaftlichkeit im betreffenden Unternehmen. Eine inhaltliche Bewertung der Höhe der Umsatzkostenintensität ist nur im Zeit- bzw. Betriebsvergleich sinnvoll."]
[36,"36-Umsatzrentabilität","Die Umsatzrentabilität ur [%] gibt an, in welchem prozentualen Verhältnis der aus Umsatzgeschäften erwirtschaftete Gewinn [EUR/a] zum getätigten Gesamt-Umsatz [EUR/a] steht. Die Kennzahl \"ur [%]\" ist neben der Umschlagszahl des Kapitals \"uz [-/a]\" die zweite wichtige Bestimmungsgröße im Du Pont-Kennzahlensystem zur Ermittlung des \"Return On Investment\" (ROI, siehe dort). Bei der Ermittlung der Umsatzrentabilität werden im Zähler der Berechnungsformel unterschiedliche Gewinngrößen eingesetzt, so das \"Jahresergebnis\", das \"Betriebsergebnis\" oder auch die Kennzahlen EBIT bzw. EBITDA (siehe dort).","Die Kennzahl \"Umsatzrentabilität\" soll im Rahmen der Erfolgsanalyse Auskunft darüber geben, wie die markt- und kostenseitige Ertragskraft des betreffenden Unternehmens im Zeit- und im Betriebsvergleich zu bewerten ist. Allerdings muss im Falle, dass die Umsatzrentabilität mit Bezug zum \"Jahresergebnis\" ermittelt wird,  beachtet werden, dass in das Jahresergebnis Wirkungen eingehen, die keinen oder nur einen geringen Zusammenhang zum erwirtschafteten Umsatz haben. Daher ist es besser, bei der Erfolgsanalyse die Kennzahlen \"EBIT-Marge\" bzw. \"EBITDA-Marge\" zu ermitteln und zu bewerten."]
[37,"37-Zinsdeckungsgrad (aus Ergebnis)","Der Zinsdeckungsgrad gibt darüber Aufschluss, inwieweit der in der GuV-Rechnung ausgewiesene \"Zinsaufwand\" aus der Fremdfinanzierung des Unternehmens durch das  \"Ergebnis vor Zinsen und Steuern\" [EBIT] gedeckt ist. Der Zinsdeckungsgrad kann damit als ein Risikomaß und somit als Indikator für den möglichen Spielraum einer weiteren Verschuldung des betreffenden Unternehmens angesehen werden.","Je höher der ermittelte Wert des Zinsdeckungsgrades, desto geringer ist das Ausmaß einer weiteren Ergebnisbelastung aufgrund höherer Fremdkapitalzinsen. Die Aussagekraft des Zinsdeckungsrades ist nicht sehr hoch. Besser ist es, sich nach solchen Kennzahlen wie den \"'dynamischen Verschuldungsgrad\" oder die \"Eigenkapitalquote\"  zu richten."]
[38,"38-Kapitalflussrechnung, Cashflow-Statement","Die Kapitalflussrechnung ist ein Instrument zur Abbildung der periodenbezogenen Zahlungsströme im Geschäftsbetrieb eines Unternehmens.  Sie zielt darauf ab, die Zu- und Abgänge bei den Aktiva und Passiva als Veränderungen der Gesamtheit der liquiden Mittel ('Cash') darzustellen, und zwar getrennt nach den Bereichen \"[1]  Mittelzufluss / Mittelabfluss aus der operativen Geschäftstätigkeit\", \"[2]  Mittelzufluss / Mittelabfluss aus der Investitionstätigkeit\"  und \"[3] Mittelzufluss / Mittelabfluss aus der Finanzierungstätigkeit\". Das Ergebnis dieser Rechnung wird auch als Cashflow-Statement bezeichnet.","Die Kapitalflussrechnung kann nach der direkten Methode oder nach der indirekten Methode ausgeführt werden. Bei der direkten Methode einer Kapitalflussrechnung werden die sich aus dem laufenden Geschäftsbetrieb des Unternehmens ergebenden zahlungswirksamen Erträge [Einzahlungen] den in der gleichen Periode verursachten zahlungswirksamen Aufwendungen [Auszahlungen] gegenübergestellt, wobei  die genannten drei Bereiche unterschieden werden. Dies setzt die Kenntnis der unternehmensinternen Buchungsdaten voraus. Bei der indirekten Methode wird hingegen auf die Daten der Dokumente des Jahresabschlusses (Bilanz und GuV-Rechnung) zurückgegriffen. Diese Methode wird in diesem SCHLAG NACH anhand der Daten der Beispiel-Firma vorgestellt."]
[39,"39-Brutto-Cashflow","Als Brutto-Cashflow wird jener Cashflow-Betrag bezeichnet, de sich nach folgender vereinfachter Berechnung ergibt: Brutto-Cashflow = Jahresergebnis + Abschreibungen ./. Veränderungen bei langfristigen Rückstellungen.","Beim sog. ordentlichen Brutto-Cashflow werden alle aperiodischen und außergewöhnlichen Aufwendungen und Erträge neutralisiert, um so den Unternehmensvergleich im internationalen Maßstab zu erleichtern. Berechnung: Ordentlicher Brutto-Cashflow = Cashflow + aperiodische und außergewöhnliche Aufwendungen ./. aperiodische und außergewöhnliche Erträge + Steuern vom Einkommen."]
[40,"40-Cashflow-Marge, Investitionsgrad, CF-Deckungskraft","Mit Bezug zum Cashflow werden eine Reihe weiterer betriebswirtschaftlicher Kennzahlen gebildet. So gibt die Kennzahl  \"Cashflow-Marge\" an, in welchem prozentualen Verhältnis der betrieblich erwirtschaftete Cashflow zum erzielten Umsatz steht.  Die Kennzahl \"Investitionsgrad\" gibt an,  in welchem Ausmaß der betrieblich erwirtschaftete Cashflow zur Finanzierung von Investitionen ausgereicht hat. Die Kennzahl \"Cashflow-Deckungskraft I\" soll verdeutlichen, in welchem Maße die Auszahlungen für Investitionen durch den operativen Cashflow gedeckt sind. Die Kennzahl \"Cashflow-Deckungskraft II\" zeigt an, in welchem Maße a) die Auszahlungen für Investitionen sowie b)  notwendige Fremdkapitaltilgungen durch den operativen Cashflow gedeckt sind.","So ist aus einem Wert der Cashflow-Marge von - beispielsweise 30 % - abzuleiten, dass ein Unternehmen einen Cashflow von 30,00 EUR je 100 EUR Umsatzerlöse  erwirtschaftet hat. Ein Investitionsgrad von mehr als 100 % würde bedeuten, dass im betreffenden Geschäftsjahr mehr investiert wurde als liquide Mittel aus dem Umsatzprozess (über den betrieblich erwirtschafteten Cashflow) generiert werden konnten. Die Berechnungen zur CF-Deckungskraft sollen die Cashflow-Verwendung verdeutlichen und damit aufzeigen, inwieweit das Unternehmen existenzsichernde Verpflichtungen aus dem operativen Cashflow erfüllt. "]
[41,"41-Entschuldungsgrad, dynamischer Verschuldungsgrad","Die Kennzahl \"Entschuldungsgrad\" gibt an, zu wie viel Prozent (per anno) der operative Cashflow [EUR/a] die gegebene Effektivverschuldung des betreffenden Unternehmens [EUR] abdeckt. Diese Kennzahl wird daher auch \"Kapitaldienstfähigkeit\" genannt. Der \"dynamische Verschuldungsgrad\" wird als Verhältnis der Effektivverschuldung [EUR]  zum operativen Cashflow [EUR/a] ermittelt. Diese Kennzahl - als Reziprokwert des \"Entschuldungsgrades\" - zeigt somit an, nach wie viel Jahren die Effektivverschuldung durch den operativen Cashflow getilgt werden könnte.","Die Kennzahl \"Entschuldungsgrad\" wird oft im Zusammenhang mit Insolvenzprognosen ermittelt, denn in Krisensituationen nimmt die Effektivverschuldung i. d. R. zu, während der operative Cashflow meist rückläufig ist. Diese Kennzahl eignet sich somit gut für Zeit- und Betriebsvergleiche. Bei der Kennzahl \"Dynamischer Verschuldungsgrad\" wird unterstellt, dass der operative Cashflow ausschließlich zur Schuldentilgung eingesetzt wird. Obwohl dies in der Praxis nicht zutrifft, lassen sich mit dieser Kennzahl dennoch Stärken bzw. Schwächen in Bezug auf die Schuldentilgungsdauer diagnostizieren. An Stelle des operativen Cashflows kann in den Formeln auch der Betrag des Netto-Cashflows eingesetzt werden."]
[42,"42-Free-Cashflow, Ertragswert","Der Free-Cashflow FCF zeigt an, welcher Betrag an finanziellen Mitteln ein Unternehmen nach Abschluss eines Geschäftsjahres für die Schuldentilgung  und für Gewinnausschüttungen an die Unternehmenseigner zur Verfügung hat. Berechnung: Free-Cashflow = operativer Cashflow + (-)  Cashflow aus Investitionstätigkeit. Der Free-Cashflow wird als Ertragsindikator für die Ermittlung des Unternehmenswertes herangezogen (Ertragswert, Shareholder-Value). Als Ertragswert (EW) wird jener Wert bezeichnet, der sich als Barwert der an den Eigentümer eines Investitionsobjektes fließenden Ausschüttungen (= geschätzte monetäre Zukunftserfolge) errechnet. Der so ermittelte Ertragswert stellt eine Preisgrenze dar, deren Überschreitung finanzielle Nachteile für den Käufer und deren Unterschreitung finanzielle Nachteile für den Verkäufer eines Investitionsobjekts haben würde. Besondere Bedeutung hat der Ertragswert beim Kauf/Verkauf von Immobilien.","Für die Akteure der Kapitalmärkte ist der Free-Cashflow ein wichtiger Indikator zur Beurteilung der Selbstfinanzierungskraft eines Unternehmens. Je höher der Free-Cashflow, desto größer ist der finanzielle Handlungsspielraum des Unternehmens und um so mehr interessieren sich potenzielle Investoren für das Unternehmen."]
[43,"43-Re-Investitionsindex","Der Re-Investitionsindex gibt an, in welchem prozentualen Verhältnis die in einer Periode T getätigten Investitionen [EUR/a] zu dem in dieser Periode erwirtschafteten Netto-Cashflow [EUR/a] stehen. ","Erreicht der Re-Investitionsindex einen Wert über 100 %, dann bedeutet dies, dass der Netto-Cashflow voll für Investitionen verwendet wurde und dass ein Teil der Investitionen darüberhinaus noch über Fremdkapital finanziert werden musste."]
[44,"44-Kennzahlen (mit Bilanz-, GuV- und CF-Daten)","Die Kennzahlengruppe \"44- 54\" enthält die Definition weiterer betriebswirtschaftlicher Kennzahlen, die jedoch in Bezug auf ihre formel- und datenseitige Darstellung nur in Einzelfällen auf die Basisdaten der Bilanz, der GuV bzw. der Kapitalflussrechnung zurückgreifen","Kein Kommentar"]
[45,"45-Abschreibungsintensität","Die Kennzahl \"Abschreibungsintensität\" beschreibt im Prozentausdruck das Verhältnis zwischen den in der GuV-Rechnung ausgewiesenen Abschreibungen auf Sachanlagen auf auf immaterielle Vermögensgegenstände einerseits und der periodenbezogenen Gesamtleistung andererseits. Dadurch soll sichtbar gemacht werden, welcher Betrag an Vermögen [EUR] durchschnittlich je 100 EUR Gesamtleistung verzehrt wird. Die Abschreibungsintensität lässt Rückschlüsse auf die Anlagenintensität des Geschäftsbetriebs des betreffenden Unternehmens und auf die im Abschlussjahr realisierte Investitionstätigkeit zu. ","Bei Anwendung des Umsatzkostenverfahrens ist im Nenner der Berechnungsformel der Betrag der Umsatzerlöse einzusetzen. Eine Interpretation der Abschreibungsintensität ist nur branchenbezogen sinnvoll (siehe auch \"Anlagenintensität\")."]
[46,"46-Abschreibungsquote","Die Kennzahl \"Abschreibungsquote\" zeigt an, in welchem prozentualen Verhältnis die in einem Geschäftsjahr vorgenommenen Abschreibungen auf Sachanlagen zum Endbestand am Sachanlagenvermögen (zu AHK) zum Schluss des Geschäftsjahres stehen. ","Aus dem errechneten Wert der Abschreibungsquote können Rückschlüsse auf die Abschreibungs- und Investitionspolitik des betreffenden Unternehmens gezogen werden: Je höher die Abschreibungsquote, umso kürzer ist die Rest-Nutzungsdauer der Sachanlagen und umso höher wird der Investitionsbedarf zur Erneuerung der Sachanlagen sein.  Ist die Abschreibungsquote beispielsweise gering und der Anlagenabnutzungsgrad hingegen hoch, \"stirbt das Unternehmen wohl so vor sich hin\".\n\n"]
[47,"47-Anlagenabnutzungsgrad","Die Kennzahl \"Anlagenabnutzungsgrad\" (Sachanlagen) wird als prozentualen Verhältnis zwischen dem Gesamtbetrag der kumulierten Abschreibungen auf Gegenstände des Sachanlagenvermögens und dem Endbestand an Sachanlagenvermögen (zu AHK) ermittelt. Weist diese Kennzahl einen geringen Betrag aus, ist zu schlussfolgern, dass der durch die Sachanlagen repräsentierte \"Produktionsapparat\" des jeweiligen Unternehmens relativ neu sein wird. ","Aus dem errechneten Wert des Anlagenabnutzungsgrades können wiederum Rückschlüsse auf die Abschreibungs- und Investitionspolitik des betreffenden Unternehmens gezogen werden: Wenn der Anlagenabnutzungsgrad einen hohen Wert aufweist, besteht offenbar ein hoher Nachholbedarf an Investitionen. Dieses \"Nachholen\" würde die künftige Ertrags- und Finanzlage des Unternehmens stark beeinträchtigen."]
[48,"48-Bindungsdauer des Vorratsvermögens","Die Kennzahl \"Bindungsdauer des Vorratsvermögens\" wird als Verhältnis des durchschnittlichen Vorratsbestandes [EUR] zum Umsatz [EUR/a] berechnet. Daraus leitet sich ab, in wie vielen Tagen [d] der durchschnittliche Wert des Vorratsvermögens über die getätigten Umsätze gewissermaßen \"verdient\" wurde. Diese Bindungsdauer wird auch als \"Umschlagsdauer\" [d]  des Vorratsvermögens bezeichnet, während der reziproke Wert  der Umschlagsdauer die \"Umschlagshäufigkeit\" des Vorratsvermögens [-/a] ergibt.","Bei der Kennzahl \"Bindungsdauer des Vorratsvermögens\" wird unterstellt, dass die Refinanzierung der Gegenstände des Vorratsvermögens über die Umsätze erfolgt (siehe hierzu auch \"Kreditorenfrist\"). Wird die Beschaffung und Lagerhaltung der Gegenstände des Vorratsvermögens an die Umsatzentwicklung angepasst, wird im Zeitvergleich eine annähernd gleiche Bindungsdauer erreicht. Wichtig ist, den Wert der Bindungsdauer des Vorratsvermögens möglichst niedrig zu halten, denn das Vorratsvermögen bindet nur liquide Mittel und generiert keine Rendite. Im Weiteren kann die Kennzahl \"Bindungsdauer des Vorratsvermögens\" auch differenziert nach den Positionen \"Roh-, Hilfs- und Betriebsstoffe\" sowie \"Unfertige Erzeugnisse/Leistungen\" und \"Fertige Erzeugnisse/Leistungen\" berechnet werden."]
[49,"49-Capex zu Abschreibungen","Als \"Capex zu Abschreibungen\" wird eine Kennzahl bezeichnet, die das prozentuale Verhältnis der im Geschäftsjahr getätigten \"Auszahlungen für Investitionen\" (in das langfristige Vermögen) zum Wert des Abschreibungsvolumens im betreffenden Geschäftsjahr angibt. Dadurch soll sichtbar gemacht werden, in welcher Größenordnung die Abschreibungsgegenwerte wieder für die Finanzierung von Investitionen eingesetzt wurden. Bei einem Capex-Wert von unter 100 % ist zu schlussfolgern, dass das Investitionsvolumen niedriger ist als der Abschreibungsbetrag und dass die Abschreibungsgegenwerte somit nicht vollständig für die Finanzierung von Investitionen herangezogen wurden.","Wenn der CAPEX-Wert auch im Zeitvergleich unter 100 % liegt, kann daraus geschlussfolgert werden, dass das betreffende Unternehmen keine Erweiterungsinvestitionen getätigt hat und somit \"von der Substanz\" lebt. Allerdings ist zu beachten, dass der Kennzahlenwert durch die jeweils angewendete Abschreibungsmethode beeinflusst wird. Auch die Aktivierung selbst erstellter immaterieller Vermögenswerte kann diese Kennzahl beeinflussen."]
[50,"50-Debitorenumschlag, Debitorenfrist","Die Kennzahl \"Debitorenumschlag\" gibt darüber Auskunft, wie oft in einer Periode der (durchschnittliche) Bestand an Forderungen aLuL [EUR] über den Jahresumsatz [EUR/a]  umschlägt. Der Reziprokwert des Debitorenumschlags wird als \"Debitorenfrist\" bezeichnet.  Diese Kennzahl, die auch \"Bindungsdauer der Forderungen aLuL\" genannt wird, gibt  an, welches durchschnittliche Zahlungsziel [d] ein Unternehmen seinen Kunden gewährt.  Dabei gilt: Je höher der Debitorenumschlag, desto kürzer ist die (durchschnittliche) Debitorenfrist und desto früher kann mit dem Zufluss liquider Mittel über Erlöse aus Umsatz gerechnet werden.","Es liegt auf der Hand, dass ein hoher Wert der Debitorenfrist bzw. der Bindungsdauer der Forderungen aLuL nachteilig für die Liquiditätssituation des betreffenden Unternehmens ist. Wenn ein uneigennütziges Gewähren eines \"großzügigen\" Zahlungsziel ausgeschlossen werden kann, ist aus einem hohen Wert der Debitorenfrist auf eine schlechte Zahlungsmoral der Kunden oder auf ein mangelndes Forderungsmanagement des Unternehmens zu schlussfolgern. Mit dem Anbieten eines Kundenskontos kann ggf. eine kürzere Debitorenfrist bewirkt werden."]
[51,"51-Eigenkapitalrentabilität","Die Kennzahl \"Eigenkapitalrentabilität\" wird als prozentuales Verhältnis zwischen dem erwirtschafteten Jahresergebnis [EUR/a] und dem durchschnittlichen Eigenkapital eines Unternehmens [EUR] ermittelt. Die so berechnete Kennzahl ist somit ein Maß für die gewinnwirksame Verzinsung [% p. a.] des im Durchschnitt einer Rechnungsperiode eingesetzten Eigenkapitals. Zu beachten ist hierbei,  dass die Höhe der Eigenkapitalrentabilität durch die Nutzung des sog. Leverage-Effekts (siehe dort) beeinflusst und somit \"manipuliert\" werden kann.","Die Kennzahl \"Eigenkapitalrentabilität\" wird am Markt für Geldanlagemöglichkeiten als eine zentrale Vergleichsgröße in Bezug auf Renditechancen angesehen.  Beim Einbringen von Eigenkapital in ein Unternehmen sollten aber die Renditeaussichten nicht das alleinige Entscheidungskriterium sein, denn \"Rendite\" steht in direktem Zusammenhang zum \"Risiko des Verlustes\" aus Einlagen. Je höher die Eigenkapitalrentabilität, desto höher ist in der Regel auch das Anlagen-Risiko."]
[52,"52-Gesamtkapitalrentabilität","Die Kennzahl \"Gesamtkapitalrentabilität\" wird als prozentuales Verhältnis des im betreffenden Geschäftsjahr erwirtschafteten Ergebnisses [EUR/a], zuzüglich der gezahlten Fremdkapitalzinsen [EUR/a], zum durchschnittlichen Gesamtkapital eines Unternehmens ermittelt. Die Gesamtkapitalrentabilität ist somit ein Maß für die ertragswirksame Verzinsung [% p. a.] des im Durchschnitt einer Rechnungsperiode eingesetzten Kapitals. Diese Kennzahl wird in der Praxis als Maßstab für die Fähigkeit des Managements eines Unternehmens angesehen, aus dem in das Vermögen des Unternehmens investierte Kapital reale Gewinne zu erzielen. Zu beachten ist ferner die Rolle des Leverage-Effektes (siehe dort)!"," Die Gesamtkapitalrentabilität entspricht inhaltlich der Kennzahl Return on Investment (siehe dort). In der Praxis wird zur Berechnung der Gesamtkapitalrentabilität nicht der \"Jahresgewinn\" (nach Steuern), sondern das \"Ergebnis vor Steuern\"(EBT) in die Berechnungsformel eingesetzt. Damit wird für Unternehmensvergleiche im internationalen Maßstab der Einfluss der unterschiedlichen Regelungen zur Unternehmensbesteuerung eliminiert. "]
[53,"53-Investitionsquote, Investitionsrate","Als \"Investitionsquote\" (bezogen auf Sachanlagen) wird das prozentuale Verhältnis zwischen a) den im betreffenden Geschäftsjahr vorgenommenen Netto-Investitionen in das Sachanlagenvermögen zu b) dem Anfangsbestand des Sachanlagenvermögens des Jahres bezeichnet. Die Kennzahl \"Investitionsrate\" weist hingegen das prozentuale Verhältnis zwischen den im Geschäftsjahr vorgenommenen Erweiterungsinvestitionen einerseits und dem Umsatz des Jahres andererseits aus. ","Diese beiden Kennzahlen vermitteln im Zeit- und Betriebsvergleich Erkenntnisse über die Investitionspolitik des betreffenden Unternehmens. So weisen eine ansteigende Investitionsquote sowie auch ein hoher Wert der Investitionsrate auf Wachstumsbestrebungen des Unternehmens hin. Wichtig: Durch den Bezug zum Anfangsbestand an Sachanlagen (zu AHK) wird der Einfluss von Abschreibungen eliminiert.  "]
[54,"54-Kreditorenumschlag, Kreditorenfrist","Der Kreditorenumschlag  errechnet sich aus der periodenbezogenen gesamten Einkaufssumme [EUR], dividiert durch den durchschnittlichen Bestand an Verbindlichkeiten aLuL (= Kreditorenbestand). Die Kreditorenfrist gibt - als Reziprokwert des Kreditorenumschlags - an, welches durchschnittliche Zahlungsziel [Tage] einem Unternehmen von seinen Lieferanten im Beschaffungsprozess eingeräumt wird. Bezugsbasis ist dabei das Geschäftsjahr mit 360 Tagen.","Sowohl die Kennzahl \"Kreditorenumschlag\" als auch die Kennzahl \"Kreditorenfrist\" (Kreditorenlaufzeit) lassen im Zeitvergleich Rückschlüsse auf die Beschaffungspolitik und die Zahlungsgepflogenheiten des betreffenden Unternehmens zu. Ein fallender Wert des Kreditorenumschlags bei etwa gleichbleibender Einkaufssumme lässt eine schlechtere Zahlungsfähigkeit und Zahlungsdisziplin des Unternehmens vermuten. Auch ist zu vermuten, dass angebotene Lieferer-Skonti nicht genutzt werden bzw. genutzt werden können. Kritisch (und teuer) wird es, wenn bestehende Verbindlichkeiten aLuL erst nach Mahnung und mit Zugriff zum eingeräumten Kontokorrentkredit beglichen werden können."]
[55,"55-Weitere Kennzahlen","Die Kennzahlengruppe \"55 - 102\" enthält die Definition weiterer betriebswirtschaftlicher Kennzahlen, die jedoch in Bezug auf ihre formel- und datenseitige Darstellung nur in Einzelfällen auf die Basisdaten der Bilanz, der GuV bzw. der Kapitalflussrechnung zurückgreifen. Zu beachten ist daher, dass die Ausgangsdaten für die Kennzahlen in dieser Kennzahlengruppe - im Unterschied zu Bilanz- und- GuV- Daten - nicht extern eingegeben werden können. Es bestehen aber ausreichend  Variationsmöglichkeiten der Beispieldaten, um sichtbar zu machen, wie \"empfindlich\" die jeweilige Zielgröße auf Änderungen der Formel-Parameter reagiert. Des Weiteren wird großer Wert auf die adäquate Visualisierung des durch die Kennzahl erfassten betriebswirtschaftlichen Zusammenhangs gelegt.","Kein Kommentar"]
[56,"56-Abschreibung, lineare","Unter Abschreibung ist sowohl das Mittel der Wertangleichung der im Wert gesunkenen Vermögensgegenstände als auch der Vorgang der zeitabhängigen Wertminderung bei abnutzbaren Gütern des Anlagevermögens zu verstehen. Die in einer Abschreibung zum Ausdruck kommende Wertminderung stellt Aufwand dar. Dieser periodenbezogene Aufwand ist in der Erfolgsrechnung auszuweisen. Der zur Abschreibung korrespondierende steuerrechtliche Begriff heißt \"Absetzung für Abnutzung\" (AfA). Diejenige Form der Abschreibung, bei der der jährliche Abschreibungsbetrag Q konstant bleibt, heißt lineare Abschreibung. Die lineare Abschreibung ist das in der Praxis meist genutzte Abschreibungsverfahren, da es rechentechnisch einfach ist, ferner alle Teilperioden der Nutzungsdauer gleichmäßig belastet und zudem steuerrechtlich für die Ermittlung der \"Absetzung für Abnutzung\" (AfA) vorgegeben wird.","Ausgangswert der linearen (planmäßigen) Abschreibung sind die Anschaffungs- bzw. Herstellungskosten des betreffenden Anlagegutes  [EUR] . Weitere einbezogene Größen sind die Nutzungsdauer des Anlagegutes [Jahre]  (vgl. § 253 Abs. 3 HGB, § 7 Abs. 1 EStG) sowie der geschätzte Restwert [EUR] am Ende der Nutzungsdauer. Abschreibungsbeginn ist vom Grundsatz her der Zeitpunkt der Anlieferung des Gutes bzw. der Zeitpunkt der Fertigstellung bzw. Inbetriebnahme eines Anlagegutes im Geschäftsbetrieb des Unternehmens. Im Zugangsjahr des Anlagegutes ist eine zeitanteilige, monatsgenaue Abschreibung vorzunehmen."]
[57,"57-Abschreibung, degressive","Als geometrisch-degressive Abschreibung (Buchwertabschreibung) wird diejenige Form der Abschreibung bezeichnet, bei der der jährliche Abschreibungsprozentsatz p  - bezogen auf den jeweiligen Buchwert des Vorjahres (= Restwert Rk-1) - konstant bleibt. Diese Vorgehensweise basiert auf der Überlegung, dass die zur Anschaffung bzw. Herstellung eines Anlagegutes verausgabten Mittel möglichst schnell wieder über Abschreibungen erwirtschaftet werden sollen. Die Abschreibungsbeträge müssen demnach in den ersten Jahren hoch sein, um danach langsam zu sinken, so dass in den letzten Nutzungsjahren kaum noch merkliche Wertminderungen ausgewiesen werden können. Dieses Vorgehen entspricht dem Ansatz der kaufmännischen Vorsicht und trägt vor allem der Tatsache Rechnung, dass – speziell bei technischen Anlagen und Maschinen – gerade in den ersten Nutzungsjahren die Gefahr der Entwertung des Wirtschaftsgutes durch den technischen Fortschritt besonders groß ist.\n","Steuerrechtlich ist die geometrisch degressive Abschreibung nur bei  beweglichen Gütern des Anlagevermögens anwendbar, die bis zum 31.12.2010 angeschafft wurden. Die geometrisch-degressive Abschreibung führt insbesondere bei einer kurzen Nutzungsdauer zu relativ hohen Restbuchwerten. Daher gehen Unternehmen oft dazu über, gegen Ende der Nutzungsdauer die lineare Abschreibung anzuwenden."]
[58,"58-Amortisationszeit","Die Amortisationszeit ist eine kalkulatorische Größe der Investitionsrechnung, die angibt, wie viele Jahre es voraussichtlich dauern wird, bis der Betrag des im Anschaffungsjahr getätigten Kapitaleinsatzes für ein Investitionsobjekt durch die jährlich erwirtschafteten Rückflüsse aus der Nutzung des Investitionsobjekts (Gewinne und Abschreibungsgegenwerte) mindestens erreicht bzw. überschritten ist.","Die Methode der Ermittlung einer Amortisationszeit für Investitionsobjekte wird - wegen ihrer Einfachheit - in der Praxis der Investitionsplanung sehr häufig angewendet. Das Problem dabei ist allerdings,  dass es nicht nur Schwierigkeiten in der objektkonkreten Zurechenbarkeit von Aufwendungen und Erträgen gibt, sondern dass auch auf eine Abzinsung von Aufwendungen und Erträgen verzichtet wird."]
[59,"59-Annuität","Die Annuität A ist - im hier betrachteten Zusammenhang - eine finanzmathematisch ermittelte jährliche Zahlung [EUR/a], die im Rahmen der dynamischen Investitionsrechnung mit dem Ziel ermittelt wird, die Vorteilhaftigkeit einer Investition über die Ermittlung eines finanzmathematisch begründeten Periodenerfolgs sichtbar zu machen. Danach ist eine Investition dann vorteilhaft, wenn die Annuität A - als gleichbleibender jährlicher Netto-Überschuss - einen Wert größer Null (A > 0) annimmt.\n\n","Für die Ermittlung der Annuität A ist die vorherige Ermittlung des Kapitalwerts eines Investitionsvorhaben erforderlich (siehe dort). Wird jedoch mit jährlich gleichen Netto-Überschüssen gerechnet, werden nur die Angaben zu den Anschaffungs-/Herstellungskosten AHK [EUR] des Investitionsobjekts, zur Nutzungsdauer n [a] sowie zum kalkulatorischen Zinssatz i [-/a] benötigt. Im Weiteren ist zu beachten, dass unter Annuität im Kontext zu Tilgungsrechnungen bei Kreditrückzahlungen der Betrag der gleichhohen jährlichen Zahlung im Sinne von \"Annuität = Tilgungsbetrag + Zinsen\" zu verstehen ist."]
[60,"60-Arbeitsproduktivität","Die Arbeitsproduktivität ist eine Maßgröße für den Wirkungsgrad der zur Erstellung von Ertragsgütern eingesetzten menschlichen Arbeit.  Sie gibt darüber Auskunft, wie viel Einheiten einer Outputgröße (im Mengen- oder im Geldausdruck) erzielt werden, wenn am Input des Leistungsprozesses eine Einheit menschlicher Arbeitsleistung (in Zeit- oder in Personaleinheiten) zur Wirkung kommt.","Die Arbeitsproduktivität ist eine faktorbezogenene Kennzahl (Teilproduktivität), denn in das Maß der Gesamtproduktivität ist zumindest immer auch die Maschinenproduktivität einzubeziehen."]
[61,"61-Barwert, Barwertfaktor","Unter Barwert ist der auf den Gegenwartszeitpunkt t = 0 finanzmathematisch abgezinste (diskontierte) Wert eines Kapitalbetrages zu verstehen. Der sich bei Kenntnis des kalkulatorischen Zinssatzes i  [-/a] und der Laufzeit n [a] ergebende finanzmathematische Abzinsungsfaktor wird auch Barwertfaktor genannt (siehe auch Kennzahlen \"Annuität\" und \"Kapitalwert\").","In der Praxis der Betriebswirtschaft hat die Bestimmung des Barwertes vor allem Bedeutung bei der Bewertung von Investitionen nach der Kapitalwertmethode bzw. der Annuitätenmethode, bei der Ermittlung von Pensionsrückstellungen und anderen langfristigen Rückstellungen (vgl. § 253 Abs. 2 HGB), bei der Berechnung von Rentenverpflichtungen aus dem Erwerb von Wirtschaftsgütern auf Rentenbasis oder von unverzinslichen Forderungen u. a."]
[62,"62-Beschäftigungsgrad, Kapazitätsauslastung","Der Beschäftigungsgrad ist das in Prozent ausgedrückte Verhältnis zwischen der tatsächlich genutzten Kapazität ([ZE] oder [ME]) zur Normalkapazität ([ZE] oder [ME]) eines Betriebes, einer Anlage oder einer Kostenstelle. Die tatsächlich genutzte Kapazität entspricht der (Ist-)Beschäftigung. Als Beschäftigungsabweichung wird die Differenz zwischen der Ist-Beschäftigung [ZE] und der geplanten Soll-Beschäftigung [ZE] bezeichnet.\n\n","Diese Kenngrößen spielen bei der Produktionsplanung, bei der flexiblen Plankostenrechnung und beim Produktions- bzw. Kostencontrolling eine wichtige Rolle."]
[63,"63-Bestellmenge, optimale","Die Bestellmenge x ist dann optimal, wenn die Summe aus Beschaffungskosten und Lagerkosten minimal ist. Zwischen dem Ziel, über hohe Bestellmengen günstige Lieferer-Rabatte zu erzielen, und dem Ziel, die Lagerhaltungskosten möglichst gering zu halten, muss ein Kompromiss gefunden werden. Ein Ansatz für die Ermittlung einer optimalen Bestellmenge liefert die sog. ANDLER-Formel, die jedoch nur unter bestimmten Annahmen zu einem akzeptablen Ergebnis führt.","Die Aufgabe besteht somit darin, eine solche Bestellmenge x [ME] zu berechnen, bei der die Gesamtkosten (Symbol K [EUR]) aus der Addition der Bestellkosten\n(Symbol KB [EUR]) und der Lagerhaltungskosten (Symbol KL [EUR]) ein Minimum ergeben. Diesem Ansatz liegt zugrunde, dass sich die Bestellkosten und die Lagerhaltungskosten als Funktion der Bestellmenge x [ME] gegenläufig verhalten, so dass es eines \"Maßes der Gesamtwirksamkeit\" bedarf, um jene Bestellmenge zu ermitteln, bei der Gesamtkosten ein Minimum ergeben. "]
[64,"64-Bestellregeln","Als Bestellregeln werden formalisierte Entscheidungsregeln der Form q = f (b, t, K, x , ...) bezeichnet, woraus die Entscheidung abzuleiten ist, wann wie viel zu bestellen ist. Die Bestellmenge q hängt dabei vor allem vom gegebenen Bestand b, der Beschaffungszeit t, den Beschaffungs- und Lagerkosten K, dem gewünschten Servicegrad x und anderen Faktoren ab.","Als beispielhafte Vorgehensweisen im Beschaffungsprozess sind vor allem das Bestellpunktverfahren sowie das Bestellrhythmusverfahren zu nennen. Diese Verfahren werden hier mit ihren Berechnungsgrundlagen im Detail vorgestellt."]
[65,"65-Break-even- Umsatz","Der Break-even-Umsatz ist jene Umsatzgröße [EUR], bei der die erzielten Erlöse E [EUR] genau die zugehörigen Kosten K [EUR] decken (mit  K = Fixkosten + variable Kosten). Der Gewinn mit G = E - K nimmt somit an diesem Punkt den Wert G = 0 an. Ist dagegen U > U0, dann wird ein Gewinn erzielt. Bei U < U0 kommt es hingegen zu einem Verlust.","Im Zusammenhang mit der Ermittlung des Break-even-Umsatzes ist es immer von besonderem Interesse, zu wissen, in welcher Position sich dieser Punkt im Vergleich zur Kapazitätsgrenze befindet: Rein rechnerisch wäre es ja möglich, eine Gewinnschwelle zu ermitteln, die – im Break-even-Diagramm – rechts von der Kapazitätsgrenze liegt. Dies würde bedeuten, dass ein Unternehmen selbst bei Ausschöpfen seiner Kapazitätsgrenze nicht einmal die Gewinnschwelle erreichen könnte. Für die Beurteilung der Lage der Gewinnschwelle zur Kapazitätsgrenze wird in der Break-even-Analyse der sog. Sicherheitsabstand genutzt. "]
[66,"66-Break-even-Point (produktbezogen)","Der produktbezogene Break-even-Point (= Gewinnschwelle) ist jene Ausbringungsmenge x0 [ME] eines Produkts, bei der die mit dieser Menge erzielten Erlöse E [EUR] genau die zugehörigen Kosten K [EUR] decken (mit K = Fixkosten + variable Kosten). Der Gewinn mit G = E - K nimmt somit an diesem Punkt den Wert G = 0 an. Ist dagegen x > x0, dann wird ein Gewinn erzielt. Bei x < x0 kommt es hingegen zu einem Verlust.\n","Die Ermittlung einer produkt- bzw. auftragsbezogenen Gewinnschwelle geht von bestimmten Voraussetzungen/Annahmen aus: a) Es liegen Angaben zu den Fixkosten sowie zu den variablen Stückkosten vor. b) Die Fixkosten sind im betrachteten Wertebereich der Produktionsmenge x konstant (keine sprungfixen Kosten). c)  Die variablen Stückkosten verhalten sich im betrachteten Wertebereich der Produktionsmenge x linear zu dieser Menge. d) Die Produktionsmenge x  ist gleich der Absatzmenge. e) Der Verkaufspreis bleibt im Betrachtungszeitraum konstant. Dies sind natürlich im Hinblick auf die Situationen in der Praxis idealisierte Voraussetzungen. "]
[{"$f":"A66+1","v":67},"67-Deckungsbeitrag, Deckungsbeitragsrate","Der Deckungsbeitrag DB [EUR] ist die Differenz zwischen den Umsatzerlösen UE [EUR] und den zur Erstellung der Umsatzleistung aufgewendeten direkten (variablen) Kosten Kv [EUR]. Ist der so ermittelte Deckungsbeitrag DB kleiner Null, dann bedeutet dies, dass die Umsatzerlöse nicht einmal die variablen Kosten decken. Eine solches Umsatzgeschäft ist betriebswirtschaftlich nicht zu verantworten! Erst bei einem DB > 0, der  dann mindestens gleich der Größe der Fixkosten (Kf) ist, wird die Gewinnschwelle erreicht. Die Deckungsbeitragsrate DBU ist das prozentuale Verhältnis des Deckungsbeitrages DB [EUR] zum Umsatz U [EUR]: DBU = DB * 100 / U. Die Größe DBU  hängt - bei gegebenem Umsatz U [EUR] -  direkt vom Anteil  a [%] der variablen Kosten [EUR] am Umsatz U ab (siehe \"Ermittlung/Beispiel\").  ","Die Deckungsbeitragsrechnung ist - im Unterschied zur Vollkostenrechnung - ein Verfahren der Teilkostenrechnung. Sie basiert auf der Unterscheidung zwischen fixen Kosten und variablen Kosten und dient der Ermittlung des Deckungsbeitrages DB als Differenzgröße zwischen den Umsatzerlösen UE und den variablen Kosten Kv gesamt. Insbesondere die mehrstufige Deckungsbeitragsrechnung eignet sich sehr gut für eine kurzfristige Erfolgsrechnung, und zwar als Alternative zur kurzfristigen Erfolgsrechnung nach dem Vollkostenansatz in Gestalt der Kostenträgerzeitrechnung."]
[68,"68-Deckungsbeitrag, relativer","Der relative Deckungsbeitrag ([EUR/ME] oder [EUR/ZE]) ist der 'kleine' db [EUR/ME] bezogen auf eine Einheit eines Ressourceneinsatzfaktors ([ME/ME] oder [ZE/ME]). Mit Hilfe der Angaben zum relativen Deckungsbeitrag kann die Rangfolge der Ressourcen-Inanspruchnahme im Falle des Vorliegens einer  Engpass-Situation bestimmt werden.","Je größer der Wert eines relativen Deckungsbeitrages ([EUR/ME] oder [EUR/ZE]) ist, desto gewichtiger ist der Beitrag einer Einheit der betreffenden Ressource (z. B. Rohstoff oder Kapazitätsposition) in Bezug auf den zu erzielenden Gesamtdeckungsbeitrag. Daher wird bei Engpass-Situationen zunächst eine Rang- und Reihenfolge der Ressourcen nach dem relativen Deckungsbeitrag ermittelt (siehe \"Beispiel\")."]
[69,"69-Durchlaufzeit","Die Durchlaufzeit (eines Auftrages bzw. eines Erzeugnisses) umfasst die Zeitspanne vom Auslösen des Fertigungsauftrages bis zur endgültigen Erledigung dieses Auftrages (mit Übergabe des Produktes an den Vertrieb). ","Wichtige Bestandteile der Durchlaufzeit bzw. der Durchlaufterminierung sind: Die reinen Bearbeitungszeiten, die Rüstzeiten, die Transportzeiten, die Kontrollzeiten und die Liegezeiten (in Zwischenlagern)."]
[70,"70-Fertigungstiefe","Als Fertigungstiefe wird im hier betrachteten Kontext das prozentuale Verhältnis zwischen der \"Wertschöpfung\" [EUR/a] und der \"Gesamtleistung\" [EUR/a] bezeichnet. Diese Kennzahl soll verdeutlichen, in welchem Maße ein Unternehmen seine Produkte selbst erstellt bzw. in welchem Umfang Produkte hinzugekauft werden, denn je höher der Anteil der selbst erstellten Produkte an der Gesamtleistung ist, desto höher ist die Fertigungstiefe.","Die Grunddaten zur Ermittlung der Fertigungstiefe lassen sich relativ leicht aus den Unterlagen zur GuV-Rechnung ableiten: Die Gesamtleistung wird ohnehin in GuV-Rechnung nach dem Gesamtkostenverfahren ausgewiesen. Die Wertschöpfung ergibt sich aus der Gesamtleistung abzüglich der bezogenen Vorleistungen (Materialaufwand u. a.). Eine zu große Abhängigkeit von Zuliefern kann immer zu Problemen führen (siehe das Thema \"gestörte bzw. unterbrochene Lieferketten\")."]
[71,"71-Fluktuationsrate","Als Fluktuationsrate wird das prozentuale Verhältnis der Anzahl von Personalabgängen im Geschäftsjahr zum Durchschnitts-Personalbestand eines Unternehmens bezeichnet. Als \"Personalabgänge\" sollten sinnvoller Weise nur jene Mitarbeiter erfasst werden, die das Unternehmen im betreffenden Jahr freiwillig verlassen haben.","Die Ursachen für Personalabgänge können sowohl bei überbetrieblichen Gegebenheiten (z. B. unattraktive Region oder Branche), bei betrieblichen Faktoren  (z. B. ungünstige Arbeitszeitregelungen, fehlende Aufstiegsmöglichkeiten, schlechtes Betriebsklima), aber auch im persönlichen Bereich liegen (z. B. Wechsel des Wohnorts, Übergang in die Selbstständigkeit). Fluktuation ist ein bedeutender Kostenfaktor, denn nicht immer ist es einfach, gleichwertigen Ersatz für ausgeschiedene Mitarbeiter zu finden. Daraus folgt, dass das Management des Unternehmens der Ermittlung und Analyse der Fluktuationsrate sowie dem Klären von Ursachen für Fluktuation besondere Aufmerksamkeit schenken muss."]
[72,"72-FuE-Intensität","Mit der  Kennzahl \"FuE-Intensität\" soll sichtbar gemacht werden, welchen prozentualen Anteil die jährlichen Aufwendungen für Forschung und Entwicklung am Jahresumsatz eines Unternehmens haben. Auf der einen Seite verringern hohe FuE-Aufwendungen das Jahresergebnis, aber ohne Investitionen in neue innovative Produkte geht die Wettbewerbsfähigkeit des Unternehmens verloren. ","Die Daten zu den FuE-Aufwendungen werden entweder in der GuV-Rechnung oder im Anhang zum Jahresabschluss ausgewiesen.  Da die Kennzahl \"FuE-Intensität\"  auf rein monetären Größen basiert, lassen sich aus dieser Kennzahl kaum Rückschlüsse auf die umsatzbezogene Wirksamkeit der FuE-Aufwendungen ziehen. Für Zeit- und Branchenvergleiche kann diese Kennzahl aber dennoch genutzt werden."]
[73,"73-Handelsspanne","Die Handelsspanne (h) ist das in Prozent ausgedrückte Verhältnis des Roherlöses zum Netto-Umsatz eines Handelsunternehmens. Der Roherlös RE, auch Betragsspanne genannt, ist die Differenz zwischen dem Netto-Umsatz U (zu Netto-Verkaufspreisen) und dem Wareneinsatz WE (zu Einstandspreisen). Mit Hilfe der Handelsspanne h kann man - vom Verkaufspreis einer Ware aus - rückwärts den Einstandspreis dieser Ware berechnen.","Die  Handelsspanne stellt im Endeffekt das Entgelt für die vom Händler erbrachte Leistung dar. Dieses Entgelt soll sowohl die Kosten decken als auch ein Gewinnbeitrag erbringen.  Als Vergleichsgröße dient die Handelsspanne auch dazu,  den Rohertrag zu prüfen.  Ein wichtiger Zweck der  Ermittlung der Handelsspanne besteht ferner darin, über diesen Weg auch die notwendigen Kalkulationszuschläge für die Handelswaren (siehe dort) zu bestimmen."]
[74,"74-Handlungskostensatz","Als Handlungskostensatz (hks) wird jene Kalkulationsgröße bezeichnet, die sich aus der Division der Handlungskosten eines Handelsbetriebes bzw. einer Warengruppe zum jeweiligen Wareneinsatz ergibt. Der so ermittelte Handlungskostensatz wird dann als prozentualer Verrechnungssatz genutzt, um die kalkulatorischen Handlungskosten von Waren bzw. Warengruppen zu bestimmen.","Unter Handlungskosten sind jene im Geldausdruck bewerteten Aufwendungen zu verstehen, die dem Handelsunternehmen beim Vollzug seiner betriebstypischen Funktionen entstehen.  Zu den Handlungskosten gehören vor allem die Personalkosten,  Mieten, Pachten, Werbungskosten, Energiekosten, Kosten für Kommunikation (Telefon, Fax, E-Mail, Internet), Lagerkosten,  Logistikkosten u. a. "]
[75,"75-Innovationsquote","Als \"Innovationsquote\" wird das prozentuale Verhältnis des \"Umsatzes mit neuen Produkten\" zum \"Gesamtumsatz\" des Jahres bezeichnet. Diese Kennzahl gilt als wichtiger Indikator für die Innovationskraft des betreffenden Unternehmens sowie auch für die Aktualität des gegenwärtigen Produktions- und Dienstleistungsprogramms.","Die Innovationsquote verdeutlicht die Fähigkeit eines Anbieters, immer wieder neuartige Angebote auf den Markt zu bringen. Dabei ist zu beachten: Der ermittelte Wert der Innovationsquote hängt maßgeblich davon ab, welcher Zeitraum gerade betrachtet wird und wie lange somit ein Produkt noch als \"neu\" gilt. Auch kann aus dieser Kennzahl nicht abgeleitet werden, ob die neuen Produkte auch für die Kunden einen akzeptablen Mehrwert bringen."]
[76,"76-Investitionsrechnung (Kostenvergleich)","Bei der Investitionsrechnung nach der Kostenvergleichsmethode gilt es, jene Größe x0 zu ermitteln, bei deren Überschreiten eine Investitionsalternative B sich als kostengünstiger als eine Investitionsalternative A erweist. In die Entscheidungsfindung werden nur die mit den Investitionsalternativen verbundenen fixen und variablen Kosten einbezogen.","Die Fixkosten eines Investitionsobjekts setzen sich zusammen aus den kalkulatorischen Abschreibungen, den kalkulatorischen Zinsen und den sonstigen fixen Kosten. Die variablen Kosten eines Investitionsobjekts beinhalten i. d. R. die mengenabhängigen Materialkosten, ferner die Fertigungslöhne und sonstige variable Kosten.  Die Kostenvergleichsrechnung wird als Variante der statischen Investitionsrechnung dann bevorzugt, wenn es bei der Investitionsentscheidung um einen reinen betriebsinternen Kostenvergleich geht und somit Erfolgsgrößen bei der marktlichen Verwertung der zu erstellenden Produkte keine primäre Rolle spielen."]
[77,"77-Kalkulationszuschlag (Handel)","Der Kalkulationszuschlag k ist das prozentuale Verhältnis des im Verkauf von Handelswaren erzielten Roh-Erlöses zum entsprechenden Wareneinsatz. Der Roh-Erlös (auch Betragsspanne genannt) ist die Differenz zwischen dem Netto-Umsatz (zu Verkaufspreisen) und dem zugehörigen Wareneinsatz (zu Einstandspreisen).","Der Kalkulationszuschlag bildet  die Grundlage der Vorwärtskalkulation von Handelswaren. Das Ziel der Vorwärtskalkulation besteht darin, einen Verkaufspreis - zunächst als Barverkaufspreis - zu bestimmen, der a) die Handlungskosten deckt und b) einen angestrebten Gewinn absichert (siehe auch Handelsspanne)."]
[78,"78-Kapitalkostensatz  WACC","Der Kapitalkostensatz WACC (Weighted Average Cost of Capital) verdeutlicht die gesamten Kapitalkosten eines Unternehmen, gewichtet nach bilanziertem Eigenkapital und nach zinstragendem Fremdkapital. Über die Ermittlung dieser Kennzahl wird versucht, den Mindestverzinsungsanspruch für die Bereitstellung finanzieller Mittel durch Investoren - im Vergleich zu alternativen Finanzanlagen -  deutlich zu machen.","Für die Berechnung der Kennzahl WACC mit seinen beiden Hauptteilen \"Eigenkapitalkostensatz\" und \"Fremdkapitalkostensatz\" wird ein kompliziertes Modell genutzt, in das eine Vielzahl von Einzelkennzahlen einbezogen werden (siehe \"Ermittlung/Beispiel\"). Die Kennzahl WACC basiert auf vergangenheitsorientierten Daten und ist bilanzpoltisch nicht beeinflussbar."]
[79,"79-Kapitalproduktivität","Die Kennzahl \"Kapitalproduktivität\" (Symbol kp) gibt an, welche Leistung L am Output eines Unternehmensprozess bewirkt wird, wenn am Input des Prozesses ein Gesamtkapital C zum Einsatz kommt. Insofern repräsentiert diese Größe einen wichtigen Wirkungsgrad im Unternehmensprozess (siehe auch \"Umschlagszahl uz\"). ","Die Kennzahl \"Kapitalproduktivität\" wird als Hilfsgröße  bei wirtschaftskybernetischen Modellen von Kennzahlensystemen benötigt, so beim Du-Pont-Schema zur Kennzahl \"Return On Investment\" u .a."]
[80,"80-Kapitalwert einer Investition","Der Kapitalwert C einer Investition ist die Differenz zwischen dem Barwert der investitionsbezogenen Einzahlungen und dem Barwert der investitionsbezogenen Auszahlungen. Der Kapitalwert ist eine zentrale Bewertungsgröße im Rahmen der dynamischen Investitionsrechnung: Falls der ermittelte Kapitalwert C größer Null ist, dann kann das Investitionsvorhaben als wirtschaftlich nutzbringend angesehen werden.","Der Vorteil der Kapitalwertmethode ist darin zu sehen, dass die mit dem Investitionsobjekt verbundenen Einzahlungen und Auszahlungen zeitlich und betragsmäßig differenziert erfasst und finanzmathematisch vergleichbar gemacht werden können. Als Nachteil dieser Methode wird angesehen, dass in der Praxis  die Ein- und Auszahlungen kaum für das jeweilige Investitionsobjekt separiert erfasst werden können und zudem Unsicherheiten in Bezug auf die Vorausbestimmung künftiger Ein- und Auszahlungen bestehen."]
[81,"81-Kostenreagibilität","Die Kostenreagibilität (Kostenveränderlichkeit)  R  gibt an, in welchem prozentualen Verhältnis sich die Kosten K ändern, wenn sich die Beschäftigung B (ausgedrückt in Zeiteinheiten) oder die Auftragslage (ausgedrückt in zu erstellenden Outputmengen) in einem bestimmten Maße prozentual ändert. Der Reagibilitätsgrad R kann verschiedene Werte annehmen, aus denen Schlüsse auf auf typische Kostenverläufe gezogen werden können.","Mit Hilfe der Kennzahl \"Kostenveränderlichkeit R\" lassen sich folgende fünf Grundsituationen beschreiben: Fixe Kosten, proportionale Kosten, unterproportionale Kosten, überproportionale Kosten und regressive Kosten (siehe \"Ermittlung/Beispiel\")."]
[82,"82-Kostensatz","Als Kostensatz (ks) wird der prozentuale Anteil der Kosten K am Preis P eines Produkts oder an einer erstellten Leistung L  bezeichnet. Bei Kenntnis des Kostensatzes ks kann ermittelt werden, wie hoch in etwa die Kosten K sein werden, wenn eine Leistung L in bestimmter Größe erstellt wurde. ","Die Kennzahl \"Kostensatz\" wird vor allem als Hilfsgröße in wirtschaftskybernetischen Modellrechnungen benötigt.  Im Weiteren ist zu beachten, dass auch Zuschlagssätze in der Kosten- und Leistungsrechnung eine Art Kostensatz sind."]
[83,"83-Lagerdauer, Lagerumschlag","Die Kennzahl \"durchschnittliche Lagerdauer\" (ld) bringt zum Ausdruck, wie lange sich eingekaufte Güter oder fertige Produkte im Lager befinden. Die Kennzahl \"Lagerumschlag\" (lu) ergibt sich aus dem gesamten periodenbezogenen Wareneinsatz (WE), dividiert durch den durchschnittlichen Lagebestand (LB). Bezugsbasis ist das Geschäftsjahr mit 360 Tagen.","Bei einem geringen Wert der Lagerdauer ld ist zu prüfen, ob mögliche Verzögerungen in der Bestellung/Anlieferung der benötigten Güter zu Störungen in der Leistungserstellung führen könnten. Ergibt sich hingegen ein hoher Wert der Lagerdauer, ist zu prüfen, ob dieser Wert eventuell durch \"Ladenhüter\" oder andere Faktoren verursacht  wird. "]
[84,"84--Lagerkostensatz, Lagerhaltungskostensatz","Die Kennzahl \"Lagerkostensatz\" wird als prozentuales Verhältnis der Lagerkosten (bei einem Materiallager, Zwischenlager oder Fertigwarenlager) zum jeweiligen Lagerbestandswert ermittelt. In die Lagerkosten werden Raum- und Personalkosten, Mieten, Kosten für Lagersicherheit u. a. einbezogen. Des Weiteren wird ein \"Lagerzinssatz\" eingerechnet, um die kalkulatorischen Zinsen des im Lager gebundenen Kapitals berücksichtigen zu können. Die Addition aus Lagerkostensatz und Lagerzinssatz ergibt die Kennzahl \"Lagerhaltungskostensatz\" [% p. a.].","Der Lagerkostensatz und der Lagerhaltungskostensatz spielen bei der Bestimmung optimaler Bestell- und Lagerhaltungsstrategien eine wichtige Rolle. Bei der Ermittlung dieser Größen ist es von der Sache her unerheblich, ob das betreffende Lager mit Eigen- oder mit Fremdkapital finanziert wird, denn Lager bzw. Lagerbestände binden immer Kapital, welches sonst für andere Mittelverwendungen zur Verfügung stehen würde."]
[85,"85-Lagerreichweite","Die Kennzahl \"Lagerreichweite\" gibt an, wie viele Tage der durchschnittliche Lagerbestand an Material  bei durchschnittlichem Materialverbrauch für die Absicherung der Leistungserstellung ausreicht. Handelt es sich um ein Fertigwarenlager, dann besagt die Kennzahl \"Lagerreichweite\", in wie vielen Tagen der durchschnittliche Lagerbestandswert zu Umsatz führt. ","Um die Effizienz im Unternehmensprozess zu erhöhen, werden Materiallager oft abgebaut und in die Just-in-Time-Logistik ausgelagert. Das senkt zwar Lager- und Kapitalbindungskosten, aber bei Problemen im Beschaffungsprozess (in den \"Lieferketten\") kann dies zu Störungen in der eigenen Leistungserstellung führen. Auch im Falle von Fertigwarenlagern kann eine zu geringe Lagerreichweite die Flexibilität des Unternehmens bei Schwankungen in der Nachfrage hemmen."]
[86,"86-Leverage-Effekt","Als Leverage-Effekt wird jene Hebelwirkung bezeichnet, die unter bestimmten Voraussetzungen bewirkt, dass die Eigenkapitalrentabilität durch weitere Aufnahme von Fremdkapital, also durch Schuldenzunahme, gesteigert werden kann. Bedingung: Die Gesamtkapitalrentabilität gkr ist größer als der Zinssatz i für die Aufnahme von Fremdkapital. Zur Darstellung der Ursache-Wirkung-Zusammenhänge beim Leverage-Effekt wird hier ein interaktives wirtschaftskybernetisches Modell des entsprechenden Kennzahlensystems zum Probieren angeboten.","So vielversprechend dies mit der Steigerung der Eigenkapitalrentabilität durch Schuldenaufnahme auch klingen mag, so sollte doch Vorsicht geboten sein, denn mit Erhöhung des Verschuldungsgrades steigt auch das finanzielle Risiko, vor allem dann, wenn die Rückzahlung des aufgenommenen Fremdkapitals zeitlich   v o r   Beginn des Einstiegs in die Gewinnzone aus dem Investitionsvorhaben liegt."]
[87,"87-Make-or-Buy","Die \"Mak-or-buy\"-Entscheidung bezieht sich auf die Ermittlung jener kritischen Beschaffungsmenge x0, ab der es betriebswirtschaftlich günstiger ist, das betreffende Beschaffungsgut mit eigenen Ressourcen selbst zu erstellen (= Eigenfertigung, \"Make\"), statt es über Fremdbezug (= \"Buy\") anliefern zu lassen. Es handelt sich hier um ein spezielles Problem eines \"Break-even-Points\" (siehe dort).","Unter dem Aspekt der Sicherung einer hohen Flexibilität sowie unter dem Druck notwendiger Kostensenkungen hat dieses Entscheidungsproblem einen hohen Stellenwert erlangt. Einer der Entscheidungsgrundsätze lautet  etwa so: \"Tue nichts selber, was  andere  professioneller/besser machen können.\" Diese Orientierung richtet sich vor allem an die Adresse von Finalproduzenten (Industrie, Bauwirtschaft u. a.), Handelsunternehmen und auch Einrichtungen der öffentlichen Hand. Das Risiko einer \"buy\"-Orientierung besteht allerdings darin, dass man sich Störungen im Beschaffungsprozess des betreffenden Gutes ins \"eigene Haus\" holt und dann selbst Probleme in der Leistungserstellung bekommt."]
[88,"88-Marktanteil","Der absolute Marktanteil gibt an, welchen prozentualen Anteil das periodenbezogene Absatzvolumen eines Unternehmens am gesamten Marktvolumen eines Zielmarktes hat. Der relative Marktanteil eines Unternehmens A kennzeichnet das Verhältnis des eigenen absoluten Marktanteils zum absoluten Marktanteil eines Unternehmens B (= Konkurrent von A).","Die Kennzahl \"relativer Marktanteil\" ist auch eine wichtige Größe im sog. \"Marktanteil-Marktwachstum-Portfolio\", das der Veranschaulichung der Positionierung der Hauptprodukte eines Unternehmens hinsichtlich der Kriterien \"relativer Marktanteil\" (als x-Achse) und \"Marktwachstum\" (als y-Achse) dient. Dies schließt den Vergleich der Marktposition zum stärksten Wettbewerber mit ein."]
[89,"89-Maschinenstundensatz","Die Kennzahl \"Maschinenstundensatz\" [EUR/h]  ergibt sich aus der Division der maschinenbezogenen Fertigungsgemeinkosten [EUR/a] durch die Laufzeit der betreffenden Maschinen [h/a]. In die Ermittlung der maschinenabhängigen Fertigungsgemeinkosten gehen vor allem folgende Kostenarten ein: Kalkulatorische Abschreibungen, kalkulatorische Zinsen, Wartungs- und Reparaturkosten, anteilige Raumkosten, Energiekosten u. a. In die Ermittlung der Maschinenlaufzeit Lz [h] gehen folgende Positionen ein: Anzahl der Arbeitswochen im Jahr [w/a], Anzahl der Arbeitstage pro Woche [d/w], Anzahl der Schichten pro Tag s/d], Anzahl der Arbeitsstunden pro Schicht [h/s], durchschnittliche jährliche Ausfallzeit [h/a]. Zielsetzung der Unternehmen ist, bei hochproduktiven Maschinen und Anlagen eine produktive Laufzeit von 16 bis 20 h/Tag bei möglichst 6 Tagen/Woche zu erreichen. ","Die Maschinenstundensatzrechnung ist eine spezielle Form der Kalkulation von Kosten und Preisen im Unternehmen mit hohem Automatisierungsstand in der Leistungserstellung. Diesem Vorgehen liegt die Erfahrung zugrunde, dass bei zunehmender Automatisierung die Zuschlagsbasis \"Fertigungslöhne\" ihr Gewicht verliert und dadurch - formal - Zuschlagssätze für die Verrechnung der Fertigungsgemeinkosten entstehen, die in keiner Relation zur betriebswirtschaftlichen Wirklichkeit stehen würden. Auf der anderen Seite nehmen die Fertigungsgemeinkosten mit der Automatisierung auch in der Höhe zu und es verändert sich auch deren Zusammensetzung.\nDurch das Aufsplitten der Fertigungsgemeinkosten in einen Teil Maschinenstundenkosten (maGK), der von der Maschinenlaufzeit abhängig ist  sowie in \"Rest-Gemeinkosten\" (mit Bezug zum Fertigungslohn) kann dem Kostenverursachungsprinzip in der Kalkulation besser Rechnung getragen werden.\n"]
[90,"90-Materialintensität","Die Kennzahl 'Materialintensität' zeigt an, welchen prozentualen Anteil der Aufwand an Material und Vorprodukten an der Gesamtleistung bzw. am Umsatz hat. Dabei ist zu beachten, dass auf die Höhe der Materialintensität nicht nur der technisch-technologisch bedingte Materialeinsatz in den erstellten Produkten, sondern auch die - in der Regel schwankenden - Preise für Rohstoffe und Vorstufenprodukte Einfluss haben. Der Rezipokwert der Materialintensität kann als Materialproduktivität interpretiert werden: Die Materialproduktivität gibt darüber Auskunft,  welcher Betrag der Gesamtleistung L am Output des Unternehmensprozesses erzielt werden kann, wenn am Input ein Materialeinsatz von 100 EUR erfolgt.\n  ","Die Höhe des Kennzahlenwertes \"Materialintensität\" lässt auch Rückschlüsse auf die sog. Fertigungstiefe im betreffenden Unternehmen zu, denn je höher dieser Wert ist, desto größer ist der Umfang der von Lieferanten zugekauften Vorstufenprodukte und desto größer ist dann auch die Abhängigkeit des Unternehmens von diesen Zulieferungen. Bei einem niedrigen Wert der Materialintensität kann hingegen geschlussfolgert werden, dass das Unternehmen viele Produktkomponenten selbst erstellt hat."]
[91,"91-Personalintensität","Mit der Kennzahl 'Personalintensität' soll aufgezeigt werden, welchen prozentualen Anteil der Personalaufwand am erwirtschafteten Umsatz eines Unternehmens hat. Anstelle des Umsatzes kann als Basis auch die periodenbezogene Gesamtleistung bzw. die zu ermittelnde Wertschöpfung gewählt werden.","Die so berechneten Kennzahlenwerte sind von Branche zu Branche sehr unterschiedlich. So ist die Personalintensität in allen Dienstleistungsbereichen wesentlich höher als in kapitalintensiven Industrieunternehmen. Auch ist die Wechselwirkung zur Kennzahl \"Materialintensität\" zu beachten: So kann bei einem niedrigeren Wert der Materialintensität geschlussfolgert werden, dass das betreffende Unternehmen viele Produktkomponenten selbst erstellt, was einen entsprechenden Personaleinsatz bedingt."]
[92,"92-Preiselastizität der Nachfrage","Die Preiselastizität der Nachfrage liefert Anhaltspunkte dafür, welche (relative) mengenmäßige Änderung der Nachfrage zu erwarten ist, wenn der Preis für das betreffende Gut um einen bestimmten Betrag erhöht oder gesenkt wird. Dabei gilt: Je höher der Wert der Preiselastizität, desto stärker reagiert die Menge auf die Preisänderung. ","Der Koeffizient der Preiselastizität hat ein negatives Vorzeichen, da immer einer der beiden Grundgrößen negativ ist: So bewirkt im Normalfall eine Preissenkung in der Regel eine Zunahme der Nachfrage, während eine Preissteigerung einen Rückgang der Nachfrage zur Folge hat. In der Praxis kann der Koeffizient der Preiselastizität - falls für ein spezielles Produkt genügend Daten vorliegen - mit Hilfe einer Regressionsanalyse empirisch ermittelt werden. Einen besonderen Einfluss auf die Preiselastizität der Nachfrage haben solche Sachverhalte wie die Verfügbarkeit von Substitutionsprodukten, das verfügbare Einkommen zur Nachfragebefriedigung, der Preis des Produktes selbst u. a."]
[93,"93-Qualitätsrate","Als Qualitätsrate bzw. als Qualitätskoeffizient wird das prozentuale Verhältnis zwischen der Menge fehlerfreier Produkte bzw. Leistungen zur Gesamtzahl der in einem bestimmten Zeitraum und in einem bestimmten Prozess erstellten Produkte bzw. Leistungen bezeichnet. Maßstab für die Beurteilung der \"Fehlerfreiheit\" sind definierte Qualitätsanforderungen, die vor allem aus Sicht des Kunden (im Nachfolgeprozess bzw. als Käufer) bestimmt werden. Die Differenz \"100 - Qualitätsrate\" kann als \"Fehlerquote\" ausgewiesen werden.","Qualität ist Ausdruck der Brauchbarkeit eines Erzeugnisses oder einer fertiggestellten Leistung, bestimmten Anwendungserfordernissen zu genügen. Die Qualitätsrate ist ein wichtiger Indikator bei der Bewertung des Qualitätsniveaus im Bereich der Leistungserstellung. In der Regel werden für die Beurteilung des Qualitätsniveaus auch qualitative Kennzahlen wie \"Kundenzufriedenheit\", \"Anzahl Reklamationen\" u. a. herangezogen. Eine wichtige Methode in Bezug auf das Erreichen des Ziels \"Null Fehler\" ist das Konzept \"Fehler-Möglichkeiten-und-Einfluss-Analyse\" (FMEA)."]
[94,"94-Return on Investment (Du-Pont-Schema)","Die Kennzahl ROI (Return On Investment) gibt an, in welchem prozentualen Verhältnis der mit einem Investitionsvorhaben erwirtschaftete (bzw. zu erwirtschaftende) Gewinn G [EUR/a] zu dem für dieses Vorhaben eingesetzte Kapital C [EUR] steht.  Die dabei zu beachtenden Zusammenhänge lassen sich anhand des sog. Du-Pont-Schemas gut verdeutlichen. Unternehmensbezogen ist die Kennzahl ROI inhaltlich identisch mit der Kennzahl \"Gesamtkapitalrentabilität gor\". Die Kennzahl ROI ist eine Spitzen-Kennzahl im Controlling.","Die betriebswirtschaftliche Überlegung eines jeden Investors (Unternehmers) lässt sich auf folgende \"Kurzformel\" reduzieren: Wie viel Gewinn (pro Jahr) kann ich erzielen, wenn ich in ein Umsatzgeschäft 100,00 EUR investiere? Oder - anders ausgedrückt -: Nach wie viel Jahren wird das investierte Kapital C [EUR] über den Gewinn G (pro Jahr) [EUR/a] wieder zurückgeflossen sein? Die Antwort auf diese Fragen liefert einerseits die Kennzahl ROI und andererseits der betreffende Reziprokwert d = 100/ROI (siehe \"Ermittlung/Beispiel\")."]
[95,"95-ROI (hierarchisches Schema)","Im Unterschied zur Darstellung des ROI-Kennzahlensystems als Du-Pont-Modell wird im hierarchischen ROI-Modell das gesamte betriebswirtschaftliche Gefüge eines Unternehmens in Kennzahlen und Kennzahlenbeziehungen erfasst, und zwar einerseits in Gestalt der Kosten-Preis-Umsatz- und Gewinnstruktur (mit 3 ausgewählten Hauptprodukten) und andererseits in Gestalt der Vermögens-Struktur des betreffenden Unternehmens über die aggregierten Hauptpositionen laut Bilanz.  ","Die bei der Berechnung von ROI-Werten genutzten Kennzahlen \"Umschlagszahl (uz)\" und \"Umsatzrentabilität (ur)\" sind hochaggregierte Kennzahlen, die in der Praxis nicht direkt - durch Steuerungen - beeinflusst werden können. Es bedarf vielmehr einer weiteren Aufgliederung der Berechnungsgleichungen und Berechnungsgrößen, um letztlich an jene Stellen zu gelangen, an denen wir \"Drehfelder\" - als Kennzeichen der steuerungsseitigen Beeinflussung der betreffenden Größe - ansetzen können. Durch eine derartige Aufgliederung entsteht ein hierarchisch geordnetes Kennzahlensystem (siehe \"Ermittlung/Beispiel\")."]
[96,"96-Umschlagszahl des Kapitals","Die Umschlagszahl des Kapitals (uz [-/a]) besagt, wie oft das eingesetzte Kapital C [EUR] im Zeitraum eines Jahres über die Umsatzerlöse U [EUR/a] umschlägt. Die Kennzahl uz ist eine wichtige Bestimmungsgröße im Du Pont-Kennzahlensystem zur Ermittlung des \"Return On Investment\" (ROI).","Je höher die Umschlagszahl, desto höher ist die Wirtschaftlichkeit des eingesetzten Kapitals zu bewerten. Ein wichtiger Maßstab für die Wirtschaftlichkeit des eingesetzten Kapitals ist das Niveau der Kapitalproduktivität (siehe dort). Hinzu kommt, dass sich bei einer hohen Wirtschaftlichkeit des Kapitals auch der Spielraum für die Innenfinanzierung des Unternehmens erweitert. Geringe Werte der Umschlagszahl signalisieren hingegen hohe Fixkosten (siehe auch \"Anlagenintensität\")."]
[97,"97-Variator V (Kostenrechnung)","Der Variator V gibt an, wie hoch der Anteil der variablen Kosten einer Kostenart an den gesamten Plankosten dieser Kostenart  (bei Planbeschäftigung) ist. Liegt der Wert für diesen Anteil bei 0 %, dann handelt es sich bei der betreffenden Kostenart offenbar um reine Fixkosten und für den Variator V gilt V = 0. Ist dieser Anteil jedoch 100 %, dann handelt es sich um reine proportionale Kosten und der Variator V nimmt den Wert V = 10 an. In allen anderen Fällen (0 < V < 10) handelt es sich um Mischkosten. ","Der Variator V ist eine Hilfsgröße in der flexiblen Plankostenrechnung: Die flexible Plankostenrechnung ist ein Instrument zur Ermittlung von Plankosten für Kostenstellen, der Durchführung der Plankostenkalkulation von Aufträgen sowie der Durchführung von Soll-Ist-Kostenvergleichen mit differenzierter Abweichungsanalyse. Voraussetzung für die Wahrnehmung dieser Aufgaben ist die Aufspaltung der Kosten in variable und fixe Kosten, jeweils in Abhängigkeit von der Plan- bzw. Ist-Beschäftigung in einer Kostenstelle. "]
[98,"98-Verwaltungs- und Vertriebskostenintensität","Die Kennzahlen \"Verwaltungs-\" bzw. \"Vertriebskostenintensität\" reflektieren im Prozentausdruck den Anteil der Verwaltungs- bzw. Vertriebskosten am Jahresumsatz eines Unternehmens. Ihre Ermittlung dient dem Anliegen der strukturellen Erfolgsanalyse, denn ein im Zeitvergleich steigendender (bzw. sinkender) Kennzahlenwert deutet auf eine Verschlechterung (bzw. Verbesserung) des finanziellen Ergebnisses hin. ","Eine Ermittlung dieser Kennzahlen aus den Unterlagen der GuV-Rechnung ist allerdings nur bei Anwendung des Umsatzkostenverfahrens möglich. Liegen in Unternehmen, die die GuV-Rechnung nach dem Gesamtkostenverfahren bevorzugen, entsprechende Daten zu Verwaltungs- bzw. Vertriebskosten vor, dann wird als Bezugsbasis nicht der Umsatz, sondern die Gesamtleistung gewählt."]
[99,"99-Wertschöpfung, betriebliche","Die betriebliche Wertschöpfung wird - in der Entstehungsrechnung - als Differenz zwischen der Gesamtleistung eines Unternehmens in einer Rechnungsperiode T (als Output) und den in dieser Periode von außen bezogenen Vorleistungen (als Input) ermittelt. Die betriebliche Wertschöpfungskette umfasst die Funktionsbereiche \"Beschaffung/Lagerhaltung\" , \"Leistungserstellung (einschließlich Produktentwicklung, Technologie)\" sowie \"Absatz/Vertrieb\". Wichtiges Ziel dabei ist, diese Kette kundenorientiert auszugestalten!","Bei der Ermittlung der betrieblichen Wertschöpfung wird zwischen einer Entstehungsrechnung und einer Verwendungs-/Verteilungsrechnung unterschieden. Bei der Entstehungsrechnung werden von der Gesamtleistung die Materialaufwendungen (inklus. bezogener Fremdleistungen), die Abschreibungen, die sonstigen betrieblichen Aufwendungen und die sonstigen Steuern subtrahiert, um die Wertschöpfung zu bestimmen. Aufgabe und Ziel der Verwendungsrechnung ist es, die Zusammensetzung der berechneten Wertschöpfung nach Arten von Erträgen sichtbar zu machen. Die Wertschöpfung setzt sich danach aus Arbeitserträgen (insbes. Löhne und Gehälter, Sozialabgaben), aus Gemeinerträgen (Steuern auf Einkommen und Ertrag), aus Fremdkapitalerträgen (Zinsen und ähnliche Aufwendungen) sowie aus Eigenkapitalerträgen (laut Gewinnverwendungsnachweis) zusammen."]
[100,"100-Wirtschaftlichkeit, Kostenwirtschaftlichkeit","Als Wirtschaftlichkeit (wi) wird das Verhältnis des periodenbezogenen  Ertrages  [bzw. der periodenbezogenen Leistung] zum  zugehörigen Aufwand  [bzw. zu den zugehörigen Kosten ] bezeichnet. Das Ziel jedweder Leistungserstellung muss es sein, stets einen Wert von wi > 1 (bzw. 100 %) zu erreichen. ","Zur Beachtung: Die Kategorien \"Ertrag\" und \"Aufwand\" beziehen sich auf den Werteausstoß bzw. Werteeinsatz im gesamten Unternehmensprozess, während \"Leistung\" und \"Kosten\" den Werteausstoß bzw. den Werteeinsatz im eigentlichen Betriebsprozess lt. Unternehmenszweck repräsentieren. Als Kostenwirtschaftlichkeit  wird das prozentuale Verhältnis der periodenbezogenen Leistungsausbringung zum zugehörigen Kostenaufwand bezeichnet. Das Ziel jedweder Leistungserstellung muss es sein, stets einen Wert größer 1 (bzw. 100 %) zu erreichen."]
[101,"101-Zinsen, kalkulatorische","Als kalkulatorische Zinsen bezeichnet man jene fiktiven Betragsgrößen,  die die Höhe der Zinsaufwendungen reflektieren sollen, die durch die Kapitalbindung bei Investitionen oder bei Lagerbeständen entstehen, und zwar unabhängig davon, wie diese Positionen finanziert werden. Grundlage für die Ermittlung kalkulatorischer Zinsen bildet jener Zinssatz, den ein Kreditinstitut für ein vergleichbares Darlehen marktüblich verlangen würde. ","Kalkulatorische Zinsen werden in der Kosten- und Leistungsrechnung als Anderskosten behandelt, da sie - im Unterschied zu den in der Buchführung erfassten Zinsen für Fremdkapital - einen anderen Betrag haben. Dieser resultiert daraus, dass bei der kalkulatorischen Ermittlung der Zinsen auch die Verzinsung des gebundenen Eigenkapitals mit berücksichtigt wird."]
[102,"102-Zinsfuß, interner","Unter dem internen Zinsfuß versteht man im Rahmen der dynamischen Investitionsrechnung jenen kalkulatorischen Zinssatz, der beim Diskontieren der durch eine Investition bedingten Einzahlungs- und Auszahlungsströme den Kapitalwert C0 zu Null führt  (C0 = 0).\n","Zur Ermittlung des internen Zinsfußes werden zunächst unterschiedliche Zinssätze als Versuchszinssätze frei gewählt. Für diese Zinssätze wird der jeweilige Kapitalwert (siehe dort) tabellarisch ermittelt, woraus sich die gesuchte Größe des internen Zinsfußes bestimmen lässt (siehe \"Ermittlung/Beispiel\"). Die interne Zinsfuß-Methode gehört zu den Verfahren der dynamischen Investitionsrechnung."]

{"sheet":"VBA","index":3,"n_rows":0,"n_cols":0,"rows_kept":0,"cut":false,"hidden":true,"merged":[]}

{"sheet":"BwKz_Daten1","index":4,"n_rows":56,"n_cols":37,"rows_kept":56,"cut":false,"hidden":true,"merged":[[54,10,54,11],[45,19,45,20],[12,9,12,14],[12,2,12,7],[11,6,11,11],[11,12,11,15],[44,10,44,11],[44,18,44,21],[53,3,53,4],[44,3,44,4],[53,10,53,11],[11,4,11,5],[49,3,49,4],[11,26,11,29],[36,25,36,29],[12,19,12,20],[12,25,12,29],[11,18,11,21]]}
[]
[]
[null,null,"Anmerkungen:",null,null,null,null,null,null,null,null,null,null,null,null,null,null,null,"Anmerkungen:",null,null,null,null,null,null,"Anmerkungen:",null,null,null,null,null,null,null,null,"Wertschöpfungsrechnung (Entstehungsrechnung)"]
[null,null,"Die Daten aus der Bilanz eines Unternehmens bilden die Grundlage für die zahlenmäßige Bestimmung vieler Kennzahlenwerte. ",null,null,null,null,null,null,null,null,null,null,null,null,null,null,null,"Die nachstehend aufgeführten Daten der GuV-Rechnung beziehen sich ",null,null,null,null,null,null,"Die nachstehend aufgeführten Daten im Cashflow-Statement wurden nach der indi-",null,null,null,null,null,null,null,null,"Nr.","Position","Betrag"]
[null,null,"Der Aufbau der nachstehenden Bilanz orientiert sich an den Vorgaben in § 266 HGB. Er ist für diesen Tool nicht veränderbar!",null,null,null,null,null,null,null,null,null,null,null,null,null,null,null,"auf das Geschäftsjahr 02. Sie sind mit den Daten der Schlussbilanz des",null,null,null,null,null,null,"rekten Methode der Kapitalflussrechnung ermittelt. Grundlage hierfür bilden die ",null,null,null,null,null,null,null,null,"1.","Gesamtleistung",{"$f":"Leistung01","v":59250}]
[null,null,"Falls das Bedürfnis besteht, diesen Tool für eine unternehmensbezogene Bilanz- und Erfolgsanalyse zu nutzen, können die eigenen ",null,null,null,null,null,null,null,null,null,null,null,null,null,null,null,"Jahres 02 buchungsseitig verknüpft.",null,null,null,null,null,null,"Daten der Jahresschlussbilanz und der GuV-Rechnung. Die Rechnung beginnt mit der",null,null,null,null,null,null,null,null,"2.","./. Aufwendungen RHB, bezog. Waren",{"$f":"Material01","v":20180}]
[null,null,"Daten eingetragen werden. Die Daten müssen aber einer ordnungsgemäßen Buchführung entstammen und nicht \"erfunden\" sein, ",null,null,null,null,null,null,null,null,null,null,null,null,null,null,null,"Falls mit diesem Tool eine unternehmensbezogene Erfolgsanalyse ",null,null,null,null,null,null,"Position \"Jahresergebnis\"  (lt. Bilanz bzw. GuV-Rechnung). Diesem Ergebnis werden ",null,null,null,null,null,null,null,null,"3.","./. Aufwend. Für bezog. Fremdleistungen",0]
[null,null,"andernfalls stimmt dann nichts mehr. Das Jahresergebnis wird nach üblicher Bilanzregel automatisch ermittelt.",null,null,null,null,null,null,null,null,null,null,null,null,null,null,null,"erstellt werden soll, ist zu sichern, dass die Daten der GuV mit den ",null,null,null,null,null,null,"auszahlungsneutrale Aufwendungen hinzugerechnet und auszahlungsneutrale Er-",null,null,null,null,null,null,null,null,"4.","./. Abschreibungen ",{"$f":"Abschr01","v":2160}]
[null,null,null,null,null,null,null,null,null,null,null,null,null,null,null,null,null,null,"Daten der Bilanz buchungsseitig verknüpft sind!",null,null,null,null,null,null,"träge subtrahiert. Schließlich werden die Veränderungen (Zunahme, Abnahme) bei ",null,null,null,null,null,null,null,null,"5.","./. sonst. betriebl.Aufwendungen",{"$f":"sbtrAufw01","v":0}]
[null,null,null,null,null,null,null,null,null,null,null,null,null,null,null,null,null,null,null,null,null,null,null,null,null,"den weiteren Bilanzpositionen in die Rechnung einbezogen.",null,null,null,null,null,null,null,null,"6.","./. sonst. Steuern",{"$f":"sonstSt01","v":60}]
[null,null,null,null,null,null,null,null,null,null,null,null,null,null,null,null,null,null,null,null,null,null,null,null,null,null,null,null,null,null,null,null,null,null,"7.","= Wertschöpfung",{"$f":"AK5-SUM(AK6:AK10)","v":36850}]
[null,null,null,null,"Bilanz des Unternehmens",null,"Musterfirma \"PCX GmbH\"",null,null,null,null,null,"Angaben in TEUR",null,null,null,null,null,"GuV nach dem Gesamtkostenverfahren (§ 275 HGB)",null,null,null,null,null,null,null,"Cashflow-Statement nach der indirekten Methode"]
[null,null,"AKTIVA",null,null,null,null,null,null,"PASSIVA",null,null,null,null,null,null,null,null,null,{"$f":"Firma","v":"Musterfirma \"PCX GmbH\""},null,null,null,null,null,{"$f":"Firma","v":"Musterfirma \"PCX GmbH\""},null,null,null,null,null,null,null,null,"Wertschöpfungsrechnung (Verwendungsrechnung)"]
[null,null,null,null,null,"31.12.02","31.12.01",null,null,null,null,null,"31.12.02","31.12.01",null,null,null,null,null,null,null,null,null,null,null,"Nr.","Position","Betrag","Cashflow","Kontrolle",null,null,null,null,"1.","Löhne und Gehälter (80 % der Personalaufwend.)",{"$f":"Personal01-Personal01*20/100","v":23184}]
[null,null,"A. ","Anlagevermögen",null,null,null,null,null,"A.","Eigenkapital",null,null,null,null,null,null,null,"Nr.","Position","Betrag [TEUR]",null,null,null,null,0,"Liquide Mittel zu Beginn des Jahres",null,null,4670,null,null,null,null,"2.","+ soziale Abgaben (20 % der Personalaufwend.)",{"$f":"Personal01*20/100","v":5796}]
[null,null,null,"I. Immaterielle. Vermögensgegenst.",null,670,650,null,null,null,"I. Gezeichnetes Kapital",null,10050,10000,null,null,null,null,"1.","Umsatzerlöse",59000,null,null,null,null,null,null,null,null,null,null,null,null,null,"3.","= Arbeitserträge",{"$f":"AK14+AK15","v":28980}]
[null,null,null,"II. Sachanlagen",null,null,null,null,null,null,"II. Kapitalrücklagen",null,0,0,null,null,null,null,"2.","Bestandsänderung bei FE, UE",240,null,null,null,null,"1.","Jahresüberschuss",{"$f":"Jahresergebnis01","v":5550},null,null,null,null,null,null,"4.","Steuern vom Ertrag und Einkommen",{"$f":"EinkSt01","v":1950}]
[null,null,"        ",null,"1. Grundstücke; Bauten",14350,14800,null,null,null,"III. Gewinnrücklagen",null,3500,1500,null,null,null,null,"3.","andere aktivierte Eigenleistungen",10,null,null,null,null,"2.","Abschreibungen",{"$f":"Abschr01","v":2160},null,null,null,null,null,null,"5.","= Gemeinerträge",{"$f":"AK17","v":1950}]
[null,null,null,null,"2. techn. Anlagen, Maschínen",11320,8950,null,null,null,"IV. Jahresergebnis",null,{"$f":"F36-SUM(M16:M18)-SUM(M22:M34)","v":5550},{"$f":"G36-SUM(N16:N18)-SUM(N22:N34)","v":5000},null,null,null,null,"4.","sonstige betriebliche Erträge",0,null,null,null,null,"3.","Veränderung der Rückstellungen",{"$f":"SUM(M22:M24)-SUM(N22:N24)","v":1962},null,null,null,null,null,null,"6.","Zinsen und ähnl. Aufwendungen",{"$f":"AufwZinsen01-ErtZinsen01","v":386}]
[null,null,null,null,"3. andere Anlagen,BGA",4270,4860,null,null,null,null,null,null,null,null,null,null,null,null,"Gesamtleistung",{"$f":"SUM(U16:U19)","v":59250},null,null,null,null,"4.","Veränderung der Vorräte",{"$f":"SUM(G26:G27)-SUM(F26:F27)","v":120},null,null,null,null,null,null,"7.","= Fremdkapitalerträge",{"$f":"AK19","v":386}]
[null,null,null,"III. Finanzanlagen",null,null,null,null,null,"B.","Rückstellungen",null,null,null,null,null,null,null,"5.","Materialaufwand ",20180,null,null,null,null,"5.","Veränderung der Forderungen aLuL",{"$f":"FaLuL_01-FaLuL_02","v":-800},null,null,null,null,null,null,"8.","Jahresergebnis",{"$f":"Jahresergebnis01","v":5550}]
[null,null,null,null,"Wertpapiere des AV",460,410,null,null,null,"1. Pensionsrückstellungen",null,2220,2200,null,null,null,null,"6.","Personalaufwand",28980,null,null,null,null,"6.","Veränderung der Wertpapiere UV",{"$f":"SUM(G30:G31)-SUM(F30:F31)","v":0},null,null,null,null,null,null,"9.","+ Restbetrag (ao Aufwend. - ao Erträge)",{"$f":"(aoAufw01-aoErt01)","v":-16}]
[null,null,null,null,null,null,null,null,null,null,"2. Steuerrückstelllungen",null,1950,200,null,null,null,null,"7.","Abschreibungen",{"$f":"M50","v":2160},null,null,null,null,"7.","Veränd.  bei  Anzahlungen",{"$f":"erhAnz_02-erhAnz_01","v":-67},null,null,null,null,null,null,"10.","= Eigenkapitalerträge",{"$f":"AK21+AK22","v":5534}]
[null,null,"B.","Umlaufvermögen",null,null,null,null,null,null,"3. sonstige Rückstellungen",null,592,400,null,null,null,null,"8.","sonstige betriebliche Aufwendungen",0,null,null,null,null,"8.","Veränderung der Verbindlichkeiten aLuL",{"$f":"VblaLuL_02-VblaLuL_01","v":-1300},null,null,null,null,null,null,"11.","= Wertschöpfung",{"$f":"AK16+AK18+AK20+AK23","v":36850}]
[null,null,null,"I. Vorräte",null,null,null,null,null,null,null,null,null,null,null,null,null,null,null,"Betriebsergebnis",{"$f":"U20-SUM(U21:U24)","v":7930},null,null,null,null,"9.","Veränderung der sonst. Verbindlichkeiten",{"$f":"sonstVbl_02-sonstVbl_01","v":-50},null,null,null,null,null,null,null,"Überprüfung:",{"$f":"AK11-AK24","v":0}]
[null,null,"         ","1. ","Roh-, Hilfs-Betriebsstoffe",1590,1950,null,null,"C.","Verbindlichkeiten",null,null,null,null,null,null,null,"9.","Erträge aus Beteiligungen",0,null,null,null,null,"10.","Operativer Cashflow",null,{"$f":"SUM(AB17:AB25)","v":7575}]
[null,null,"        ","2.","Fertigerzeugnisse, Waren",660,420,null,null,null,"1. Verbindl. gg. Kreditinstituten",null,14550,15130,null,null,null,null,"10.","Erträge aus andren Wertpapieren",0,null,null,null,null,"11.","Veränderungen Immater. Vermögen",{"$f":"ImVg_01-ImVg_02-M46","v":-80}]
[null,null,null,"II. Forderungen",null,null,null,null,null,null,"2. erhaltene Anzahlungen",null,13,80,null,null,null,null,"11.","sonstige Zinsen und ähnliche Erträge",180,null,null,null,null,"12.","Veränderungen Sachanlagenvermögen",{"$f":"SUM(G18:G20)-SUM(F18:F20)-SUM(M47:M49)","v":-3430}]
[null,null,null,"1.","Forderungen aLuL",1070,270,null,null,null,"3. Verbindlichkeiten aLuL",null,590,1890,null,null,null,null,"12.","Abschreibungen auf Finanzanlagen",0,null,null,null,null,"13.","Veränderungen Finanzanlagenvermögen",{"$f":"WPAV_01-WPAV_02","v":-50}]
[null,null,null,"2. ","sonstige Vermögensgegenstände",0,0,null,null,null,"4. sonstige Verbindlichkeiten",null,550,600,null,null,null,null,"13.","Zinsen und ähnliche Aufwendungen",566,null,null,null,null,"14.","Cashflow aus Investitionen",null,{"$f":"AendimVm02+AendSA02+AendFA02","v":-3560}]
[null,null,"         ","III.","Wertpapiere des UV",20,20,null,null,null,null,null,null,null,null,null,null,null,null,"Finanzergebnis",{"$f":"SUM(U26:U28)-SUM(U29:U30)","v":-386},null,null,null,null,"15.","Einzahlung aus Kapitalerhöhung",{"$f":"gezKap_02-gezKap_01","v":50}]
[null,null,null,"IV.","Kasse, Bankguthaben",5155,4670,null,null,null,null,null,null,null,null,null,null,null,"14.","Ergebnis der gewöhnlichen Geschäftstätigkeit",{"$f":"U25+U31","v":7544},null,null,null,null,"16.","Veränderung der Rücklagen",{"$f":"GewR_02-(GewR_01+Jahresergebnis_01)","v":-3000}]
[null,null,null,null,null,null,null,null,null,null,null,null,null,null,null,null,null,null,"15.","außerordentliche Erträge",40,null,null,null,null,"17.","Veränderung bei langfristigen Krediten",{"$f":"VblKred_02-VblKred_01","v":-580}]
[null,null,"C. ","Rechnungsabgrenzungsposten",null,0,0,null,null," D."," Rechnungsabgrenzungsposten",null,0,0,null,null,null,null,"16.","außerordentliche Aufwendungen",24,null,null,null,null,"18.","Cashflow aus Finanzierung",null,{"$f":"AendEK02+AendRl02+AendlfrKr02","v":-3530}]
[null,null,null,null,null,null,null,null,null,null,null,null,null,null,null,null,null,null,"17.","außerordentliches Ergebnis",{"$f":"U33-U34","v":16},null,null,null,null,"19.","Netto Cashflow",null,null,{"$f":"opCF02+CFInv02+CFFin02","v":485}]
[null,null,null,null,null,{"$f":"SUM(F16:F34)","v":39565},{"$f":"SUM(G16:G34)","v":37000},null,null,null,null,null,{"$f":"SUM(M16:M34)","v":39565},{"$f":"SUM(N16:N34)","v":37000},null,null,null,null,null,"Ergebnis vor Steuern",{"$f":"U32+U35","v":7560},null,null,null,null,"20.","Liquide Mittel am Ende des Geschäftsjahres lt. Cashflow-Rechnung",null,null,{"$f":"AD15+AD35","v":5155}]
[null,null,null,null,null,null,null,null,null,null,null,null,null,null,null,null,null,null,"18.","Steuern vom Einkommen und vom Ertrag",1950]
[null,null,null,null,null,null,null,null,null,null,null,null,null,null,null,null,null,null,"19.","sonstige Steuern",60,null,null,null,null,"21.","Liquide Mittel lt. Bilanz",null,{"$f":"F32","v":5155}]
[null,null,null,null,null,{"$f":"Masch02-Masch01","v":2370},null,null,null,null,null,null,"Max Muster",null,null,null,null,null,"20.","Jahresergebnis (Jahresüberschuss)",{"$f":"U32+U35-U37-U38","v":5550},null,null,null,null,"Kontrolle:",null,"Saldo:",{"$f":"LiqM3112-LiqM_Bilanz","v":0}]
[null,null,null,null,null,null,null,null,null,null,null,"Ort, Datum","Unterschrift",null,null,null,null,null,null,null,null,null,null,null,null,"Die liquiden Mittel am Schluss des Jahres (lt. Bilanz) müssen \"auf den Cent\" mit der Summe"]
[null,null,null,null,null,null,null,null,null,null,null,null,null,null,null,null,null,null,null,null,null,null,null,null,null,"aus \"Anfangsbestand liquide Mittel\" und \"Netto-Cashflow\" übereinstimmen!"]
[]
[]
[]
[null,null,null,"Investitionstätigkeit",null,"Jahr 02",null,null,null,null,"Abschreibungen",null,"Jahr 02","Angaben in [TEUR]",null,null,null,null,"GuV nach dem Umsatzkostenverfahren (§ 275 HGB)",null,null,null,null,null,null,"Ermittlung der Umsatzkosten"]
[null,null,null,null,"Auszahungen für Investitionen",{"$f":"Masch02-Masch01","v":2370}," [TEUR]",null,null,null,"Abschreibung auf  immat. Verm. ",null,60,null,null,null,null,null,null,{"$f":"Firma","v":"Musterfirma \"PCX GmbH\""},null,null,null,null,null,"Nr.","Position","zs [%]","Betrag [TEUR]"]
[null,null,null,null,"Erweiterungsinvestitionen",2120," [TEUR]",null,null,null,"Abschreibungen  Gebäude",null,800,null,null,null,null,null,null,null,null,null,null,null,null,"2.1","Materialeinzelkosten",null,15240]
[null,null,null,null,"Umsatz mit neuen Produkten",4720," [TEUR]",null,null,null,"Abschreibungen Maschinen",null,850,null,null,null,null,null,"Nr.","Position","Betrag [TEUR]",null,null,null,null,"2.2","+ Materialgemeinkosten",5,{"$f":"AC47*AB48/100","v":762}]
[null,null,null,null,null,null,null,null,null,null,"Abschreibungen BGA",null,450,null,null,null,null,null,1,"Umsatzerlöse (zu Verkaufspreisen)",{"$f":"Umsatz01","v":59000},null,null,null,null,"2.3","= Materialkosten",null,{"$f":"AC47+AC48","v":16002}]
[null,null,null,"Einkauf, FuE",null,"Jahr 02",null,null,null,null,"Summe",null,{"$f":"SUM(M46:M49)","v":2160},null,null,null,null,null,{"$f":"S49+1","v":2},"Umsatzkosten (zu Herstellungskosten)",32150,null,null,null,null,"2.4","Fertigungslöhne",null,{"$f":"9400","v":9400}]
[null,null,null,null,"Einkaufssumme",29450,"[TEUR]",null,null,null,"Abschreibungen SAV 02",null,{"$f":"M47+M48+M49","v":2100},null,null,null,null,null,{"$f":"S50+1","v":3},"Bruttoergebnis vom Umsatz",{"$f":"Umsatz02-UmsKosten01","v":26850},null,null,null,null,"2.5","+  Fertigungsgemeinkosten",45,{"$f":"AC50*AB51/100","v":4230}]
[null,null,null,null,"FuE_Aufwand",2930,"[TEUR]",null,null,null,"kumulierte Abschreibungen SAV",null,11040,"Angaben in [TEUR]",null,null,null,null,4,"Vertriebskosten",9210,null,null,null,null,"2.6","+ Sondereinzelkosten der Fertigung",null,1582]
[null,null,null,null,null,null,null,null,null,null,null,null,null,null,null,null,null,null,5,"allgemeine Verwaltungskosten",9710,null,null,null,null,"2.7","= Fertigungskosten",null,{"$f":"AC50+AC51+AC52","v":15212}]
[null,null,null,"Personal",null,null,null,null,null,null,"Renditeansprüche der Eigner",null,4050,"Angaben in [TEUR]",null,null,null,null,6,"sonstige betriebliche Erträge",0,null,null,null,null,"2.8"," Herstellungskosten ",null,{"$f":"AC49+AC53","v":31214}]
[null,null,null,null,"Personalbestand 01.01.02",1200,null,null,null,null,"Verzinsungsansprüche der K.geber",null,{"$f":"AufwZinsen01","v":566},"Angaben in [TEUR]",null,null,null,null,7,"sonstige betriebliche Aufwendungen",0,null,null,null,null,"2.9","+ Teile der Verwaltungskosten",3,{"$f":"ROUND(AC54*AB55/100,0)","v":936}]
[null,null,null,null,"Personalbestand 31.12.02",1210,null,null,null,null,null,null,null,null,null,null,null,null,8,"Betriebsergebnis",{"$f":"BrErgUms01-VtrKost01-VwtKost01+sbtrErt02-sbtrAufw02","v":7930},null,null,null,null,"2.10","= Umsatzkosten",null,{"$f":"AC54+AC55","v":32150}]

{"sheet":"Diagramme1","index":5,"n_rows":21,"n_cols":44,"rows_kept":21,"cut":false,"hidden":true,"merged":[]}
[]
["Abschreibungsrechnung",null,null,null,null,null,null,null,null,null,null,null,null,null,null,null,null,null,"Umsatz U","Erlöse E","Kv","Kf","K","G",null,null,null,"x","fK","kv","Kosten","Preis/Erlöse","Gewinn",null,null,"x","Buy (FB)","Kf","kv","Make (EF)",null,"P","kv","Bedarf"]
[null,null,"A0",18300,null,null,"m ",1,null,null,null,null,null,null,null,3900,25,null,95,null,54,110,null,null,null,null,null,null,3900,21,null,90,null,null,null,0,{"$f":"AJ3*mob_P","v":0},{"$f":"Diagramme1!$AP$12","v":7449.4285714285716},{"$f":"AJ3*mob_kv","v":0},{"$f":"AL3+AM3","v":7449.4285714285716},null,25,17,1100]
[null,null,"n",8,null,null,"Q1M",{"$f":"Q_1*(12-(AnschM-1))/12","v":2287.5},null,null,null,null,null,null,null,null,null,null,0,{"$f":"S4","v":0},{"$f":"S4*a/100","v":0},{"$f":"KfBU","v":110},{"$f":"U4+V4","v":110},{"$f":"T4-W4","v":-110},null,null,null,0,{"$f":"Kfx","v":3900},{"$f":"kvx*AB4","v":0},{"$f":"AC4+AD4","v":3900},{"$f":"AB4*Preisx","v":0},{"$f":"AF4-AE4","v":-3900},null,null,{"$f":"AJ3+100","v":100},2500,{"$f":"Diagramme1!$AP$12","v":7449.4285714285716},1700,9149.4285714285725]
[null,null,"Rn",3000,null,null,"Q1M-Rn",{"$f":"Q_2*(12-(AnschM-1))/12","v":1912.5},null,null,null,null,null,null,null,null,null,null,{"$f":"S4+50","v":50},{"$f":"S5","v":50},27,110,{"$f":"U5+V5","v":137},{"$f":"T5-W5","v":-87},null,null,null,10,3900,210,{"$f":"AC5+AD5","v":4110},900,{"$f":"AF5-AE5","v":-3210},null,null,200,5000,{"$f":"Diagramme1!$AP$12","v":7449.4285714285716},3400,10849.428571428572,null,"WBK","n","i"]
[null,null,"Q0",{"$f":"AnKost1/Nutzj1","v":2287.5},null,null,"QR",{"$f":"(AHKZ-RestW1)/Nutzj1","v":1912.5},null,null,null,null,null,null,null,null,null,null,{"$f":"S5+50","v":100},100,54,110,164,-64,null,null,null,20,3900,420,4320,1800,-2520,null,null,300,7500,{"$f":"Diagramme1!$AP$12","v":7449.4285714285716},5100,12549.428571428572,null,32000,7,6.3]
[null,null,"i",{"$f":"1-(RestW1/AnKost1)^(1/Nutzj1)","v":0.20231069256425604},null,null,null,null,null,null,null,null,null,null,null,null,null,null,150,150,81,110,191,-41,null,null,null,30,3900,630,4530,2700,-1830,null,null,400,10000,{"$f":"Diagramme1!$AP$12","v":7449.4285714285716},6800,14249.428571428572]
[null,null,null,null,null,null,null,null,null,null,null,null,null,null,null,null,null,null,200,200,108,110,218,-18,null,null,null,40,3900,840,4740,3600,-1140,null,null,500,12500,{"$f":"Diagramme1!$AP$12","v":7449.4285714285716},8500,15949.428571428572,null,"Z","Q","Kfsonst"]
[null,null,0,{"$f":"AnKost1","v":18300},{"$f":"AnKost1","v":18300},null,0,{"$f":"AnKost1","v":18300},0,null,null,null,null,null,null,null,null,null,250,250,135,110,245,5,null,null,null,50,3900,1050,4950,4500,-450,null,null,600,15000,{"$f":"Diagramme1!$AP$12","v":7449.4285714285716},10200,17649.428571428572,null,{"$f":"(mob_WBK/2)*mob_i/100","v":1008},{"$f":"mob_WBK/mob_n","v":4571.4285714285716},1870]
[null,null,{"$f":"C9+1","v":1},{"$f":"IF(C10<=Nutzj1,D9-Q1Mon,\"\")","v":16012.5},{"$f":"IF(C10<=Nutzj1,E9-Q1MonR,\"\")","v":16387.5},null,{"$f":"G9+1","v":1},{"$f":"IF(C10<=Nutzj1,H9-I10,\"\")","v":14597.714326074114},{"$f":"IF(C10<=Nutzj1,AnKost1*(1-i_0)^(G10-1)*i_0,\"\")","v":3702.2856739258855},null,null,null,null,null,null,null,null,null,300,300,162,110,272,28,null,null,null,60,3900,1260,5160,5400,240,null,null,700,17500,{"$f":"Diagramme1!$AP$12","v":7449.4285714285716},11900,19349.428571428572]
[null,null,{"$f":"C10+1","v":2},{"$f":"IF(C11<=Nutzj1,D10-Q_1,\"\")","v":13725},{"$f":"IF(C11<=Nutzj1,E10-Q_2,\"\")","v":14475},null,{"$f":"G10+1","v":2},11644.440630910898,{"$f":"IF(G11<=Nutzj1,AnKost1*(1-i_0)^(G11-1)*i_0,\"\")","v":2953.2736951632164},null,null,null,null,null,null,null,null,null,350,350,189,110,299,51,null,null,null,70,3900,1470,5370,6300,930,null,null,800,20000,{"$f":"Diagramme1!$AP$12","v":7449.4285714285716},13600,21049.428571428572,null,"Kf","xo =",{"$f":"Kf_mob/(mob_P-mob_kv)","v":931.17857142857144}]
[null,null,3,11437.5,12562.5,null,3,9288.6457823479523,2355.7948485629463,null,null,null,null,null,null,null,null,null,400,400,216,110,326,74,null,null,null,80,3900,1680,5580,7200,1620,null,null,900,22500,{"$f":"Diagramme1!$AP$12","v":7449.4285714285716},15300,22749.428571428572,null,{"$f":"Zins_mob+Q_mob+mob_Kfs","v":7449.4285714285716}]
[null,null,4,9150,10650,null,4,7409.4534211370819,1879.1923612108701,null,null,null,null,null,null,null,null,null,null,null,null,null,null,null,null,null,null,90,3900,1890,5790,8100,2310,null,null,1000,25000,{"$f":"Diagramme1!$AP$12","v":7449.4285714285716},17000,24449.428571428572]
[null,null,5,6862.5,8737.5,null,5,5910.4417679842427,1499.0116531528392,null,null,null,null,null,null,null,null,null,null,null,null,null,null,null,null,null,null,100,3900,2100,6000,9000,3000,null,null,1100,27500,{"$f":"Diagramme1!$AP$12","v":7449.4285714285716},18700,26149.428571428572]
[null,null,6,4575,6825,null,6,4714.6962005426449,1195.745567441598,null,null,null,null,null,null,null,null,null,null,null,null,null,null,null,null,null,null,null,null,null,null,null,null,null,null,1200,30000,{"$f":"Diagramme1!$AP$12","v":7449.4285714285716},20400,27849.428571428572]
[null,null,7,2287.5,4912.5,null,7,3760.8627469807957,953.83345356184907,null,null,null,null,null,null,null,null,null,null,null,null,null,null,null,null,null,null,null,null,null,null,null,null,null,null,1300,32500,{"$f":"Diagramme1!$AP$12","v":7449.4285714285716},22100,29549.428571428572]
[null,null,8,0,3000,null,8,3000.0000000000005,760.86274698079512,null,null,null,null,null,null,null,null,null,null,null,null,null,null,null,null,null,null,null,null,null,null,null,null,null,null,1400,35000,{"$f":"Diagramme1!$AP$12","v":7449.4285714285716},23800,31249.428571428572]
[null,null,9,"","",null,9,"","",null,null,null,null,null,null,null,null,null,null,null,null,null,null,null,null,null,null,null,null,null,null,null,null,null,null,1500,37500,{"$f":"Diagramme1!$AP$12","v":7449.4285714285716},25500,32949.428571428572]
[null,null,10,"","",null,10,"","",null,null,null,null,null,null,null,null,null,null,null,null,null,null,null,null,null,null,null,null,null,null,null,null,null,null,1600,40000,{"$f":"Diagramme1!$AP$12","v":7449.4285714285716},27200,34649.428571428572]
[null,null,11,"","",null,11,"","",null,null,null,null,null,null,null,null,null,null,null,null,null,null,null,null,null,null,null,null,null,null,null,null,null,null,1700,42500,{"$f":"Diagramme1!$AP$12","v":7449.4285714285716},28900,36349.428571428572,null,null,null," "]
[null,null,12,{"$f":"IF(C21<=Nutzj1,D20-Q_1,\"\")","v":""},"",null,12,"","",null,null,null,null,null,null,null,null,null,null,null,null,null,null,null,null,null,null,null,null,null,null,null,null,null,null,1800,45000,{"$f":"Diagramme1!$AP$12","v":7449.4285714285716},30600,38049.428571428572]

{"sheet":"Diagramme2","index":6,"n_rows":67,"n_cols":25,"rows_kept":67,"cut":false,"hidden":true,"merged":[[1,20,1,24]]}
[]
[null,"Relativer Deckungsbeitrag",null,null,null,"Deckungsbeitragsrechnung",null,null,null,null,null,null,null,null,null,null,null,null,null,null,"Preiselastizität der Nachfrage"]
[null,"A",29.166666666666664,{"$f":"RANK(dbrA,$C$3:$C$7)","v":2},null,"Produkte","A","B","C","gesamt"]
[null,"B",30.136986301369863,{"$f":"RANK(dbrB,$C$3:$C$7)","v":1},null,null,"1000 EUR","1000 EUR","1000 EUR","1000 EUR","%",null,null,null,null,null,null,null,null,null,null,"Menge x","Preis P","eN"]
[null,"C",20.833333333333336,{"$f":"RANK(dbrC,$C$3:$C$7)","v":5},null,"Erlöse aus Umsatz",2500,5100,2400,{"$f":"G5+H5+I5","v":10000},100,null,null,null,null,null,null,null,null,null,null,1,1200]
[null,"D",28.688524590163937,{"$f":"RANK(dbrD,$C$3:$C$7)","v":3},null,"variable Kosten ",1400,2800,1800,{"$f":"KvA+KvB+KVC","v":6000},{"$f":"J6*100/J5","v":60},null,null,null,null,null,null,null,null,null,null,{"$f":"V5+9","v":10},{"$f":"W5^0.92-100","v":580.5291714979403},{"$f":"((V6-1)/1)/((W6-W5)/W5)","v":-17.434235000404204},{"$f":"(V6-V5)/(W6-W5)","v":-1.4528529167003505E-2}]
[null,"E",24.444444444444443,{"$f":"RANK(dbrE,$C$3:$C$7)","v":4},null,"Deckungsbeitrag",{"$f":"G5-G6","v":1100},{"$f":"H5-H6","v":2300},{"$f":"I5-I6","v":600},{"$f":"J5-J6","v":4000},{"$f":"K5-K6","v":40},null,null,null,null,null,null,null,null,null,null,{"$f":"V6+10","v":20},{"$f":"W6^0.92","v":348.91378177629826},{"$f":"((V7-V6)/V6)/((W7-W6)/W6)","v":-2.5064360887056196},-4.3175023956819589E-2]
[null,null,null,null,null,"DBU",null,null,null,null,{"$f":"J7*100/J5","v":40},null,null,null,null,null,null,null,null,null,null,30,218.42415994608751,-1.3369407347593305,-7.6634446937180217E-2]
[null,null,null,null,null,"fixe Kosten",null,null,null,{"$f":"J7-J10","v":3400},{"$f":"J9*100/J5","v":34},null,null,null,null,null,null,null,null,null,null,40,{"$f":"W8^0.92+3.5","v":145.45693705023939},-0.99781861534304495,-0.13704783604377802]
[null,null,null,null,null,"Betriebsergebnis",null,null,null,{"$f":"J5*K10/100","v":600},6,null,null,null,null,null,null,null,null,null,null,50,97.659766854610425,-0.76080307921420298,-0.20921740678519282]
[null,null,null,null,null,null,null,null,null,null,{"$f":"K6+K9+K10","v":100},null,null,null,null,null,null,null,null,null,null,60,67.692168760605611,-0.65176906436253768,-0.33369374377723504]
[null,"Kostenvergleichsmethode",null,null,null,null,null,null,null,null,null,null,null,null,null,null,null,null,null,null,null,70,48.316487465325245,-0.58227775089982192,-0.51611088392725857]
[null,null,null,null,null,null,null,null,null,null,null,null,null,null,null,null,null,null,null,null,null,80,35.42972046897588,-0.53561574863149597,-0.77598981985418491]
[null,"x","Kf, 1","Kv, 1","K1","Kf, 2","Kv, 2","K2",8,"AHK1","n","Rn","Q1","i","Z1","Kfs1","Kf1","kv1",null,null,null,90,26.632890763922468,-0.50344444613698425,-1.1367731711636315]
[null,0,{"$f":"Q15","v":24376.59888888889},{"$f":"B15*$R$15","v":0},{"$f":"C15+D15","v":24376.59888888889},{"$f":"Q19","v":34567.149444444447},{"$f":"$R$19*B15","v":0},{"$f":"F15+G15","v":34567.149444444447},0,102000,9,580,{"$f":"(J15-L15)/K15","v":11268.888888888889},9.9,{"$f":"((J15+L15)/2)*N15/100","v":5077.71},8030,{"$f":"M15+O15+P15","v":24376.59888888889},8.1999999999999993,null,null,null,100,20.482588649692438,-0.4811487354472414,-1.6259363872325681]
[null,{"$f":"B15+500","v":500},{"$f":"$C$15","v":24376.59888888889},4100,{"$f":"C16+D16","v":28476.59888888889},{"$f":"$F$15","v":34567.149444444447},2400,{"$f":"F16+G16","v":36967.149444444447}]
[null,{"$f":"B16+500","v":1000},24376.59888888889,8200,32576.59888888889,34567.149444444447,4800,39367.149444444447]
[null,1500,24376.59888888889,12299.999999999998,36676.59888888889,34567.149444444447,7200,41767.149444444447,null,"AHK2","n",null,"Q2","i","Z2","Kfs2","Kf2","kv2"]
[null,2000,24376.59888888889,16400,40776.59888888889,34567.149444444447,9600,44167.149444444447,null,153000,9,590,{"$f":"(J19-L19)/K19","v":16934.444444444445},9.9,{"$f":"((J19+L19)/2)*N19/100","v":7602.7049999999999},10030,{"$f":"M19+O19+P19","v":34567.149444444447},4.8]
[null,2500,24376.59888888889,20500,44876.59888888889,34567.149444444447,12000,46567.149444444447]
[null,3000,24376.59888888889,24599.999999999996,48976.598888888882,34567.149444444447,14400,48967.149444444447]
[null,3500,24376.59888888889,28699.999999999996,53076.598888888882,34567.149444444447,16800,51367.149444444447,null,"x0=",{"$f":"IF(R15>R19, (Q19-Q15)/(R15-R19),0)","v":2997.2207516339881},null,"Kapazität",8000]
[null,4000,24376.59888888889,32800,57176.59888888889,34567.149444444447,19200,53767.149444444447,null,null,null,null,null,null,null,{"$f":"K22","v":2997.2207516339881},{"$f":"P23*kv0_1+$Q$15","v":48953.809052287586}]
[null,4500,24376.59888888889,36900,61276.59888888889,34567.149444444447,21600,56167.149444444447,null,null,null,null,null,null,null,{"$f":"P23","v":2997.2207516339881},{"$f":"Q23-5000","v":43953.809052287586}]
[null,5000,24376.59888888889,41000,65376.59888888889,34567.149444444447,24000,58567.149444444447,null,null,null,null,null,null,null,2997.2207516339881,{"$f":"Q24-5000","v":38953.809052287586}]
[null,5500,24376.59888888889,45099.999999999993,69476.598888888882,34567.149444444447,26400,60967.149444444447,null,null,null,null,null,null,null,2997.2207516339881,{"$f":"Q25-5000","v":33953.809052287586}]
[null,6000,24376.59888888889,49199.999999999993,73576.598888888882,34567.149444444447,28800,63367.149444444447,null,null,null,null,null,null,null,2997.2207516339881,{"$f":"Q26-5000","v":28953.809052287586}]
[null,6500,24376.59888888889,53299.999999999993,77676.598888888882,34567.149444444447,31200,65767.149444444454,null,null,null,null,null,null,null,2997.2207516339881,{"$f":"Q27-5000","v":23953.809052287586}]
[null,7000,24376.59888888889,57399.999999999993,81776.598888888882,34567.149444444447,33600,68167.149444444454,null,null,null,null,null,null,null,2997.2207516339881,0]
[]
[]
[]
[]
[]
[]
[]
[]
[]
[]
[]
[]
[]
[]
[]
[]
[null,null,"Die Maschine kostet",null,109600,8800,"Versuch i1",20]
[null,null,"und ist",null,5,"nutzbar","Versuch i2",6]
[null,null,"Der kalk. Zinsatz beträgt",null,{"$f":"F48/100","v":8.1999999999999993},820,"q1",{"$f":"1+H46/100","v":1.2}]
[null,null,null,"q =",{"$f":"1+E48/100","v":1.0820000000000001},null,"q2",{"$f":"1+H47/100","v":1.06},null,null,"iint",{"$f":"H46/100-G59*(H47/100-H46/100)/(I59-G59)","v":0.10308941191688877},{"$f":"L49*100","v":10.308941191688877}]
[]
[null,null,"Jahr","Überschüsse","Abzins",null,"Barwert","Abzins","Barwert",null,"Zinssatz","Kap.wert"]
[null,null,1,12000,{"$f":"1/$H$48^C52","v":0.83333333333333337},null,{"$f":"D52*E52","v":10000},{"$f":"1/$H$49^C52","v":0.94339622641509424},{"$f":"D52*H52","v":11320.754716981131},null,null,{"$f":"G59","v":-26336.111111111095}]
[null,null,{"$f":"C52+1","v":2},38000,{"$f":"1/$H$48^C53","v":0.69444444444444442},null,{"$f":"D53*E53","v":26388.888888888887},{"$f":"1/$H$49^C53","v":0.88999644001423983},{"$f":"D53*H53","v":33819.864720541111},null,0,{"$f":"-$E$46+$D$52/((1+K53/100)^1)+$D$53/((1+K53/100)^2)+$D$54/((1+K53/100)^3)+$D$55/((1+K53/100)^4)+$D$56/((1+K53/100)^5)","v":36400},{"$f":"$M$49","v":10.308941191688877}]
[null,null,{"$f":"C53+1","v":3},31000,{"$f":"1/$H$48^C54","v":0.57870370370370372},null,{"$f":"D54*E54","v":17939.814814814814},{"$f":"1/$H$49^C54","v":0.8396192830323016},{"$f":"D54*H54","v":26028.19777400135},null,1,{"$f":"-$E$46+$D$52/((1+K54/100)^1)+$D$53/((1+K54/100)^2)+$D$54/((1+K54/100)^3)+$D$55/((1+K54/100)^4)+$D$56/((1+K54/100)^5)","v":31799.015267132894},{"$f":"$M$49","v":10.308941191688877}]
[null,null,{"$f":"C54+1","v":4},35000,{"$f":"1/$H$48^C55","v":0.48225308641975312},null,{"$f":"D55*E55","v":16878.858024691359},{"$f":"1/$H$49^C55","v":0.79209366323802044},{"$f":"D55*H55","v":27723.278213330716},null,2,{"$f":"-$E$46+$D$52/((1+K55/100)^1)+$D$53/((1+K55/100)^2)+$D$54/((1+K55/100)^3)+$D$55/((1+K55/100)^4)+$D$56/((1+K55/100)^5)","v":27407.626146180239},10.308941191688877]
[null,null,{"$f":"C55+1","v":5},30000,{"$f":"1/$H$48^C56","v":0.4018775720164609},null,{"$f":"D56*E56","v":12056.327160493827},{"$f":"1/$H$49^C56","v":0.74725817286605689},{"$f":"D56*H56","v":22417.745185981708},null,3,{"$f":"-$E$46+$D$52/((1+K56/100)^1)+$D$53/((1+K56/100)^2)+$D$54/((1+K56/100)^3)+$D$55/((1+K56/100)^4)+$D$56/((1+K56/100)^5)","v":23213.831632497851},10.308941191688877]
[null,null,"Summe",null,null,null,{"$f":"SUM(G52:G56)","v":83263.888888888905},null,{"$f":"SUM(I52:I56)","v":121309.84061083602},null,4,{"$f":"-$E$46+$D$52/((1+K57/100)^1)+$D$53/((1+K57/100)^2)+$D$54/((1+K57/100)^3)+$D$55/((1+K57/100)^4)+$D$56/((1+K57/100)^5)","v":19206.444640755395},10.308941191688877]
[null,null,"Anschaffungskosten",null,null,null,{"$f":"E46","v":109600},null,{"$f":"E46","v":109600},null,5,15375.028776222705,10.308941191688877]
[null,null,"Kapitalwert 1",null,null,null,{"$f":"G57-G58","v":-26336.111111111095},"Kapitalwert 2",{"$f":"I57-I58","v":11709.840610836021},null,6,11709.840610836018,10.308941191688877]
[null,null,null,null,null,null,null,null,null,null,7,8201.7769351999195,10.308941191688877]
[null,null,null,null,null,null,null,null,null,null,8,4842.3265130925829,10.308941191688877]
[null,null,null,null,null,null,null,null,null,null,9,1623.5259141810966,10.308941191688877]
[null,null,null,null,null,null,null,null,null,null,10,-1462.0809557221219,10.308941191688877]
[null,null,null,null,null,null,null,null,null,null,11,-4421.4799687538907,10.308941191688877]
[null,null,null,null,null,null,null,null,null,null,12,-7261.2208408327133,10.308941191688877]
[null,null,null,null,null,null,null,null,null,null,13,-9987.448425876868,10.308941191688877]
[null,null,null,null,null,null,null,null,null,null,14,-12605.931487641399,10.308941191688877]